Cogmind - Beta 13 X2 @@@ ROGUE MODE // 2024.02.06 @ 23:28:52 Player: Boris Result: Establishing Free Derelict Territories! Performance ------------- Evolutions (9) 4500 Regions Visited (40) 8000 Robots Destroyed (749) 3745 Value Destroyed (42598) 42598 Prototype IDs (260) 5200 Alien Tech Used (2) 400 Bonus (56982) 56982 TOTAL SCORE: 121425 Bonus ------- Triggered High Security 500 Triggered Max Security 1000 High Alert Combat Kills 15794 Follower Combat Kills 2500 Entered Garrisons 1000 Network Hubs Disabled 600 Aligned with FarCom 300 Met Data Miner 300 Used Data Conduit 3000 Destroyed Z-Imprinter 1000 Triggered Deep Caves Wall 500 Exposed GOLEM Chamber 500 Met Warlord at Base 500 MAIN.C Attacked Warlord 500 Warlord Defense Kills 1776 Built Enhanced Grunts 300 A7 Reached Mainframe 300 Met Warlord at Research 2000 Scanned by Researcher 500 Pursued by Intercept 1500 Destroyed MAIN.C Guards 500 Met MAIN.C 5000 Hacked MAIN.C 300 Destroyed MAIN.C Shell 5000 Destroyed MAIN.C 10000 Met Warlord at Command 2000 Win 3000 Friendly Fire -3188 Cogmind --------- Core Integrity 892/1600 Matter 76/300 Energy 800/1380 System Corruption 31% Temperature Warm (121) Movement Walking (186) Ox1 Location Free Derelict Territories Parts ------- > --- POWER (2) -------- Zero-point Reactor Zero-point Reactor > --- PROPULSION (6) --- Myomer Leg Biometal Leg Centrium Leg (fused) > --- UTILITY (12) ----- Advanced Cooling System (fused) Advanced Coolant Injector High-capacity Storage Unit Assembled Biocell Array Assembled Combat Suite Improved Armor Integrity Analyzer Advanced Weapon Cycler Assembled Alloy Armor Heavy Regenerative Plating Combat Drone Bay (0/2) > --- WEAPON (5) ------- Assembled Focal Cannon Enhanced Nova Cannon Core Cannon RU-N14's Throwing Claymores v3 > --- INVENTORY (20) --- Experimental Cooling System Improved Armor Integrity Analyzer Experimental Weapon Shielding Advanced Force Field EMDS Peak State ------------ > --- POWER ------------ Quantum Reactor Quantum Reactor > --- PROPULSION ------- Biometal Leg Biometal Leg Biometal Leg Biometal Leg Assembled Alloy Leg Centrium Leg > --- UTILITY ---------- High-capacity Storage Unit Assembled Biocell Array Experimental Optical Array Assembled Combat Suite Advanced Weapon Cycler Experimental Phase Shifter Experimental Weapon Shielding Assembled Alloy Armor Advanced Force Field Antimissile System GOLEM Unit > --- WEAPON ----------- EMDS Assembled Focal Cannon Assembled Focal Cannon Enhanced Nova Cannon > --- INVENTORY -------- Advanced Cooling System Experimental Cooling System Advanced Coolant Injector Zionite Biocell Weapon Mount Experimental Target Analyzer Improved Armor Integrity Analyzer Improved Armor Integrity Analyzer Advanced Force Field Combat Drone Bay Core Cannon Advanced Remote Datajack RU-N14's Throwing Claymores v3 [Rating: 218] Favorites ----------- Power Assembled Flux Generator Engine Improved Deuterium Engine Power Core Neutrino Core Reactor Assembled Flux Generator Propulsion Assembled Alloy Leg Treads Armored Treads Leg Assembled Alloy Leg Wheel Compact Wheel Utility High-capacity Storage Unit Device GOLEM Unit Storage High-capacity Storage Unit Processor Enhanced Optical Array Hackware Hacking Suite Protection Assembled Alloy Armor Weapon Assembled Focal Cannon Energy Gun Advanced Beam Rifle Energy Cannon Assembled Focal Cannon Ballistic Gun Flak Gun Ballistic Cannon Mini Assault Cannon Launcher Missile Launcher Special Weapon RU-N14's Throwing Claymores v3 Impact Weapon Core Stripper Slashing Weapon Longsword +1 Piercing Weapon Heavy Pick Build | -11 -10 -10 -10 -9 -8 -8 -8 -8 -7 -7 -7 -7 -7 -6 -6 -6 -6 -6 -5 -5 -5 -5 -5 -5 -5 -5 -5 -4 -4 -4 -4 -3 -3 -3 -3 -3 -3 -2 -1 -1 ------- Run | Yrd Mat Min Exi Min Mat Gar Mat Gar Fac Low Low Zio Dee Pro Fac Low Low Dat Pro Fac Was Fac Ext Cet Arc Hub Gar Fac Upp Upp War Pro Res Gar Res Gar Qua Res Acc Com Slots Evolved 18 | . . . . . 4 . . . 2 . . . . . 2 . . . . 2 . . . . . . . 2 . . . . 2 . . . . 2 2 . Power 1 | . . . . . . . . . 1 . . . . . . . . . . . . . . . . . . . . . . . . . . . . . . . Propulsion 4 | . . . . . 1 . . . . . . . . . . . . . . . . . . . . . . 2 . . . . 1 . . . . . . . Utility 10 | . . . . . 2 . . . 1 . . . . . 2 . . . . 2 . . . . . . . . . . . . . . . . . 2 1 . Weapon 3 | . . . . . 1 . . . . . . . . . . . . . . . . . . . . . . . . . . . 1 . . . . . 1 . Parts Attached 599 | 6 13 9 . 6 57 30 16 10 56 15 23 10 45 9 8 11 9 7 12 7 7 2 1 2 13 21 24 9 8 13 15 4 6 8 6 12 14 10 30 35 Power 30 | 1 2 . . . 1 1 2 1 7 . . 1 2 . . . . . . . . . . . . . 1 2 . . 1 . . 2 . . 1 . 2 3 Engine 15 | 1 2 . . . 1 . 2 . 6 . . 1 . . . . . . . . . . . . . . . 1 . . . . . . . . 1 . . . Core 3 | . . . . . . 1 . 1 1 . . . . . . . . . . . . . . . . . . . . . . . . . . . . . . . Reactor 12 | . . . . . . . . . . . . . 2 . . . . . . . . . . . . . 1 1 . . 1 . . 2 . . . . 2 3 Propulsion 115 | 2 3 5 . 2 41 7 4 1 13 . 4 2 5 . 2 . . . 1 . . . . 1 1 3 1 2 . . 2 . . . 1 . 2 3 2 5 Treads 43 | 2 1 2 . 1 20 2 1 1 5 . 2 2 3 . . . . . . . . . . . . . . . . . . . . . . . . . 1 . Leg 26 | . . . . . . . . . . . . . 1 . 2 . . . 1 . . . . 1 1 3 1 2 . . 2 . . . 1 . 2 3 1 5 Wheel 46 | . 2 3 . 1 21 5 3 . 8 . 2 . 1 . . . . . . . . . . . . . . . . . . . . . . . . . . . Hover . | . . . . . . . . . . . . . . . . . . . . . . . . . . . . . . . . . . . . . . . . . Flight . | . . . . . . . . . . . . . . . . . . . . . . . . . . . . . . . . . . . . . . . . . Utility 308 | 1 2 2 . . 7 13 6 3 12 13 15 4 28 9 6 11 9 4 11 7 7 2 1 1 9 14 9 4 8 13 8 4 4 4 4 10 4 6 17 16 Device 230 | . 1 1 . . 2 9 3 2 6 9 11 2 16 9 4 10 9 4 11 4 6 2 1 1 9 9 6 3 7 13 7 4 2 4 2 10 4 3 14 10 Storage 8 | 1 1 . . . . . . . . . . 1 3 . . . . . . 1 . . . . . . . . . . . . . . . . . 1 . . Processor 17 | . . . . . 4 . 1 . . 1 . 1 . . 1 1 . . . . 1 . . . . 1 1 . 1 . 1 . . . . . . 1 . 2 Hackware 20 | . . . . . . . . . 4 . . . . . 1 . . . . 2 . . . . . 2 1 1 . . . . 2 . 2 . . 1 3 1 Protection 33 | . . 1 . . 1 4 2 1 2 3 4 . 9 . . . . . . . . . . . . 2 1 . . . . . . . . . . . . 3 Artifact . | . . . . . . . . . . . . . . . . . . . . . . . . . . . . . . . . . . . . . . . . . Weapon 146 | 2 6 2 . 4 8 9 4 5 24 2 4 3 10 . . . . 3 . . . . . . 3 4 13 1 . . 4 . 2 2 1 2 7 1 9 11 Energy Gun 19 | . . . . . 1 5 3 3 4 . . . 3 . . . . . . . . . . . . . . . . . . . . . . . . . . . Energy Cannon 19 | . . . . . . . . . . . . . 3 . . . . . . . . . . . . 1 . . . . . . . . 1 1 . . 6 7 Ballistic Gun 40 | 2 6 1 . 2 5 . 1 . 15 1 2 1 . . . . . . . . . . . . 2 1 1 . . . . . . . . . . . . . Ballistic Cannon 1 | . . . . . . . . . 1 . . . . . . . . . . . . . . . . . . . . . . . . . . . . . . . Launcher 22 | . . 1 . 2 1 1 . 1 3 1 1 . 4 . . . . 2 . . . . . . . . 3 1 . . 1 . . . . . . . . . Special Weapon 26 | . . . . . . . . . . . . 1 . . . . . . . . . . . . . . 8 . . . 2 . 1 1 . 1 6 . 2 4 Impact Weapon 1 | . . . . . . . . . . . . . . . . . . . . . . . . . . . . . . . . . . . . . . . 1 . Slashing Weapon 17 | . . . . . 1 3 . 1 1 . 1 1 . . . . . . . . . . . . 1 2 1 . . . 1 . 1 1 . . 1 1 . . Piercing Weapon 1 | . . . . . . . . . . . . . . . . . . 1 . . . . . . . . . . . . . . . . . . . . . . Special Melee Weapon . | . . . . . . . . . . . . . . . . . . . . . . . . . . . . . . . . . . . . . . . . . Unidentified Prototypes 23 | . . . . . 1 . 2 . 1 . . . 8 . . . . . . . . . . . . 4 2 . . . 1 . 1 . . . . . 2 1 Corrupted Parts 8 | . . . . . . . . . . . . . . . . . . . 1 . . . . . 1 . 2 . . . . . . . . 1 . . . 3 System Corruption 52 | . . . . . . . . . . . . . . . . . . . 10 . . . . . 7 . 18 . . . . . . . . 5 . . . 12 Parts Lost 65 | . 1 . . 1 . 2 5 3 7 . . . 11 . . . . . 1 . . . . . . . 3 1 . 1 . 1 . 1 . . 9 . 8 10 Power 10 | . 1 . . . . . 2 1 1 . . . 3 . . . . . . . . . . . . . . . . . . . . . . . 1 . . 1 Propulsion 22 | . . . . . . 2 2 1 4 . . . 3 . . . . . 1 . . . . . . . . . . . . . . . . . 3 . 2 4 Utility 19 | . . . . . . . 1 . 1 . . . 2 . . . . . . . . . . . . . 2 1 . 1 . 1 . . . . 3 . 3 4 Weapon 14 | . . . . 1 . . . 1 1 . . . 3 . . . . . . . . . . . . . 1 . . . . . . 1 . . 2 . 3 1 Highest Loss Streak 8 | . 1 . . 1 . 2 4 2 1 . . . 5 . . . . . 1 . . . . . . . 2 1 . 1 . 1 . 1 . . 6 . 8 8 To Critical Strikes 1 | . . . . . . . 1 . . . . . . . . . . . . . . . . . . . . . . . . . . . . . . . . . Average Slot Usage (%) 90 | . 96 100 100 100 91 99 99 98 98 99 100 99 80 84 85 85 86 82 84 85 88 88 87 88 87 79 86 92 94 94 91 88 87 88 93 94 91 87 92 86 Engine 3 | . 13 14 14 14 9 . 8 4 11 15 15 15 . . . . . . . . . . . . . . . 3 5 5 2 . . . . . . 4 . . Reactor 4 | . . . . . . . . . . . . . 8 7 6 6 6 6 6 5 5 5 5 5 5 5 5 5 5 5 5 5 4 4 9 9 8 4 7 7 Treads 3 | . 17 2 . . 8 8 1 4 4 7 7 16 10 . . . . . . . . . . . . . . . . . . . . . . . . . . . Leg 13 | . . . . . . . . . . . . . 10 23 19 20 20 19 19 17 17 17 17 17 16 17 17 26 26 26 26 26 27 28 26 28 26 23 22 22 Wheel 5 | . 10 25 28 27 17 18 24 22 18 15 14 5 . . . . . . . . . . . . . . . . . . . . . . . . . . . . Device 15 | . 10 10 . . 1 14 14 13 3 14 14 15 13 15 18 13 13 13 19 23 24 23 23 23 22 17 25 21 21 22 26 25 22 13 11 18 22 18 18 19 Storage 10 | . 14 14 14 14 9 9 9 9 7 7 7 7 10 15 13 13 13 13 13 10 11 11 11 11 11 11 11 9 10 10 10 10 9 9 9 9 9 8 8 8 Processor 6 | . . . . . 10 9 9 9 7 14 15 15 1 . 5 12 13 8 6 1 3 5 5 5 5 2 . . 5 3 3 5 4 4 4 4 4 4 4 4 Hackware 1 | . . . . . . . . . 16 . . . . . . . . . . 1 . . . . . 2 2 4 . . . . . 9 11 4 . 3 8 4 Protection 2 | . . 3 14 14 7 3 3 4 2 . . . 4 . . . . . . 4 5 5 5 5 5 4 6 5 5 5 2 . . . . . . 4 3 5 Energy Gun 2 | . . . . . . 24 26 25 2 . . . 3 . . . . . . . . . . . . . . . . . . . . . . . . . . . Energy Cannon 10 | . . . . . . . . . . . . . 10 23 20 19 20 16 15 17 17 17 16 17 11 10 13 15 15 15 13 15 14 13 14 18 13 12 13 11 Ballistic Gun 5 | . 28 28 28 22 26 . . . 19 19 21 20 1 . . . . . . . . . . . 4 2 . . . . . . . . . . . . . . Naked Turns . | . . . . . . . . . . . . . . . . . . . . . . . . . . . . . . . . . . . . . . . . . Heaviest Build 175 | 13 94 96 96 96 111 113 103 102 118 124 127 112 128 128 135 131 131 139 133 138 144 143 143 143 143 174 158 143 145 147 151 148 157 152 145 163 162 138 169 175 Greatest Support 181 | 40 40 40 32 32 69 44 40 40 80 32 32 80 84 84 84 72 72 72 88 108 108 88 88 88 88 90 90 150 150 150 150 150 180 180 180 180 180 181 181 174 Greatest Overweight (x) 9 | . 5 3 2 5 3 9 7 4 9 3 3 6 2 1 1 1 1 3 2 1 1 1 1 1 1 1 1 . . . 1 1 . . . . 1 1 1 1 Average Overweight (x) 1 | . 2 2 2 2 2 4 2 2 3 3 3 3 . 1 1 1 1 1 1 1 1 1 1 1 1 1 1 . . . . . . . . . . . . . Largest Inventory Capacity 25 | 8 25 25 25 25 25 25 25 25 25 25 25 25 20 20 20 20 20 20 20 20 20 20 20 20 20 20 20 20 20 20 20 20 20 20 20 20 20 20 20 20 Average Capacity 21 | 7 18 25 25 25 25 25 25 25 25 25 25 24 17 20 20 20 20 20 20 18 20 20 20 20 20 20 20 20 20 20 20 20 20 20 20 20 20 20 20 20 Most Carried 25 | 4 21 24 25 25 25 25 25 25 25 25 25 25 20 20 20 20 20 20 20 20 19 20 20 20 20 20 20 20 19 20 20 20 20 20 20 20 20 20 20 20 Average Carried 20 | 2 12 23 24 24 24 24 24 24 24 24 25 22 16 19 19 20 19 19 19 15 18 19 19 19 19 19 19 19 18 19 19 19 19 19 19 19 19 19 19 16 Final Capacity 25 | 8 25 25 25 25 25 25 25 25 25 25 25 20 20 20 20 20 20 20 20 20 20 20 20 20 20 20 20 20 20 20 20 20 20 20 20 20 20 20 20 20 Final Carried 25 | 4 21 24 25 25 25 25 24 25 25 25 25 20 20 20 20 20 20 20 20 17 19 20 20 20 20 20 20 20 19 19 20 19 19 20 20 20 19 20 20 6 Class Distribution -------------------- 33% | Golem 12% | Skirmisher 10% | Commander-Golem 8% | Scavenger-Golem 8% | Mutant 6% | Gunner 4% | Scavenger-Skirmisher 4% | Hacker-Gunner 3% | Hacker-Skirmisher Dominant Class ---------------- Mutant | -10/Materials Mutant | -10/Mines Mutant | -10/Exiles Mutant | -9/Mines Skirmisher | -8/Materials Skirmisher | -8/Garrison Skirmisher | -8/Materials Scavenger-Skirmisher | -8/Garrison Hacker-Skirmisher | -7/Factory Skirmisher | -7/Lower Caves Skirmisher | -7/Lower Caves Gunner | -7/Zion Golem | -7/Deep Caves Golem | -6/Proximity Caves Golem | -6/Factory Golem | -6/Lower Caves Golem | -6/Lower Caves Golem | -6/Data Miner Golem | -5/Proximity Caves Golem | -5/Factory Golem | -5/Waste Golem | -5/Factory Commander-Golem | -5/Extension Commander-Golem | -5/Cetus Commander-Golem | -5/Archives Golem | -5/Hub_04(d) Golem | -5/Garrison Scavenger-Golem | -4/Factory Scavenger-Golem | -4/Upper Caves Scavenger-Golem | -4/Upper Caves Scavenger-Golem | -4/Warlord Gunner | -3/Proximity Caves Gunner | -3/Research Hacker-Gunner | -3/Garrison Hacker-Skirmisher | -3/Research Hacker-Gunner | -3/Garrison Scavenger-Gunner | -3/Quarantine Scavenger-Golem | -2/Research Scavenger-Tank | -1/Access Scavenger-Gunner | -1/Command Resources | -11 -10 -10 -10 -9 -8 -8 -8 -8 -7 -7 -7 -7 -7 -6 -6 -6 -6 -6 -5 -5 -5 -5 -5 -5 -5 -5 -5 -4 -4 -4 -4 -3 -3 -3 -3 -3 -3 -2 -1 -1 ----------- Run | Yrd Mat Min Exi Min Mat Gar Mat Gar Fac Low Low Zio Dee Pro Fac Low Low Dat Pro Fac Was Fac Ext Cet Arc Hub Gar Fac Upp Upp War Pro Res Gar Res Gar Qua Res Acc Com Matter Collected 11336 | 288 492 206 . 184 1419 407 150 137 1483 224 473 30 1165 120 80 100 100 140 356 . 145 71 121 38 355 684 479 133 70 140 150 40 50 107 63 203 125 110 244 454 Remotely . | . . . . . . . . . . . . . . . . . . . . . . . . . . . . . . . . . . . . . . . . . Salvage Created 36118 | 124 712 270 . 198 1159 1432 800 734 2172 61 382 . 1855 251 1398 854 413 433 420 69 1315 1457 1546 271 607 1646 1728 1166 939 797 735 1374 319 1599 586 1300 1972 82 1792 1150 Parts 1684 | 6 47 16 . 26 75 48 46 31 112 4 6 . 39 11 95 43 18 19 26 3 18 57 88 8 40 90 100 74 23 48 31 51 23 91 36 62 54 2 67 50 Haulers Intercepted 17 | . 2 . . . 3 . 4 . 1 . . . . . 1 . . . . . . 2 1 . . 1 . 1 . . . . . . . . . . 1 . Recyclers Shooed 7 | . 1 . . 1 1 . . . 1 . . . . . 1 . . . . . . . . . . . . . . . . . . . 1 . . . 1 . Parts Field Recycled . | . . . . . . . . . . . . . . . . . . . . . . . . . . . . . . . . . . . . . . . . . Retrieved Matter . | . . . . . . . . . . . . . . . . . . . . . . . . . . . . . . . . . . . . . . . . . Parts Self-Destructed 200 | . . . . . . . . . . 5 5 . . 10 . 29 18 . 3 . . . . . . . . . 30 48 . 52 . . . . . . . . Prevented 24 | . . . . . . . . . . . 2 . . 1 . . . . 21 . . . . . . . . . . . . . . . . . . . . . Kills | -11 -10 -10 -10 -9 -8 -8 -8 -8 -7 -7 -7 -7 -7 -6 -6 -6 -6 -6 -5 -5 -5 -5 -5 -5 -5 -5 -5 -4 -4 -4 -4 -3 -3 -3 -3 -3 -3 -2 -1 -1 ------- Run | Yrd Mat Min Exi Min Mat Gar Mat Gar Fac Low Low Zio Dee Pro Fac Low Low Dat Pro Fac Was Fac Ext Cet Arc Hub Gar Fac Upp Upp War Pro Res Gar Res Gar Qua Res Acc Com Combat Hostiles Destroyed 670 | . 10 5 . 10 24 21 11 19 37 4 8 . 65 3 21 14 7 4 7 1 5 17 18 6 3 21 39 16 12 21 14 20 6 39 10 27 92 1 20 12 Melee 6 | . . . . . . . . . . . . . . . . . . . . . . . . . . 5 . . . . . . . . . . 1 . . . Guns 115 | . 10 2 . 3 20 16 10 13 26 1 6 . . . . . . . . . . . . . . 5 3 . . . . . . . . . . . . . Cannons 309 | . . . . . . . . . . . . . 6 3 21 14 7 . 1 1 5 17 18 6 3 11 28 10 12 21 8 19 4 22 7 22 18 1 15 9 AOE 210 | . . 3 . 7 4 3 . 3 6 3 2 . 54 . . . . . 4 . . . . . . . 8 6 . . 6 . 2 16 3 5 71 . 4 . Classes Destroyed 33 | 2 6 . . 1 3 1 2 1 2 1 . . 5 1 . 1 . . . . 1 . . . . 1 3 . . . . . . . . . 2 . . . Worker 17 | . . . . . . . 1 . 9 . . . . . . . . . . . . . 1 . . 1 . 2 . . . . . . . . . . 3 . Builder 13 | . 3 1 . 1 . . 1 . 1 . . . . . 1 . . . . . . . 2 . . . . . . . . . . . 2 . . . 1 . Tunneler 5 | 2 1 . . 1 . . . . . . . . . . . . . . . . . . . . . 1 . . . . . . . . . . . . . . Hauler 17 | . 2 . . . 3 . 4 . 1 . . . . . 1 . . . . . . 2 1 . . 1 . 1 . . . . . . . . . . 1 . Recycler 16 | 1 3 2 . . 1 . . . 3 . . . . . . . . . . . . 1 1 . . . . 1 . . . . . . 1 . . . 2 . Carrier 5 | . . . . . . . . . . . . . . . . . . . . . . . . . . . . . . . . . . . . . 4 . . 1 Minesweeper 4 | . . . . . . . . . . 1 1 . . 1 . . . . 1 . . . . . . . . . . . . . . . . . . . . . Mechanic 7 | . . . . . . . . . 1 . . . . . . . . . . . . . . . . . . . . . 1 . . . . . 4 . 1 . Operator 25 | . 2 . . . . . . . 1 . . . . . 4 . . . . . . 1 1 . 10 1 . 2 . . . . 1 1 . 1 . . . . Drone 4 | . . . . . . . . . . . . . . 2 . . . . 2 . . . . . . . . . . . . . . . . . . . . . Watcher 16 | . 1 . . . . . 1 . . . . . . . 1 . . . . . . 2 1 . . 3 . 2 . . . . 1 . 1 . . . 1 2 Swarmer 118 | . 3 3 . 7 4 3 1 6 4 4 4 . . . 2 . 2 . . . . . 2 3 . . 18 5 . 16 . 5 3 14 . 9 . . . . Cutter 5 | . . . . . . . . . . . . . . . . . . . . . . . . . . 1 . . . . . . . 4 . . . . . . Saboteur 12 | . . . . . . . . . . . . . . . . . . . . . . . . . . . 2 . . . 2 . . . . . 7 . 1 . Grunt 202 | . 7 2 . 2 9 11 5 6 19 . 2 . . . 9 3 3 . 3 . . 11 7 . . 3 7 2 6 4 7 5 . 14 7 11 29 . 6 2 Brawler 25 | . . . . 1 . 1 . 1 2 . . . . . . . . . . . . . . . . . 2 . 3 . . 3 . . . . 10 . 2 . Duelist 17 | . . . . . 1 1 . . 2 . 1 . . . . . . . 1 . . . . . . . . . 1 . . 2 . . . 1 6 . 1 . Protector 10 | . . . . . . . . . 1 . . . . . . . . . . . . . . . . 1 . . . . 1 . . . . . 7 . . . Sentry 58 | . . . . . 8 3 3 2 2 . 1 . . . 4 . 1 . . . . 3 5 . 3 3 3 2 2 . . 2 1 2 1 1 4 . . 2 Hunter 51 | . . . . . 2 1 1 1 2 . . . . . 3 4 . . . 1 . . 2 . . . 3 4 . . . 2 . 2 . 4 12 1 3 3 Programmer 48 | . . . . . . . . 3 5 . . . . . 3 . . . . . . 3 . 1 . 4 . 3 . . 3 . 2 1 2 1 12 . 2 3 Heavy 2 | . . . . . . . 1 . . . . . . . . . . . . . . . . . . 1 . . . . . . . . . . . . . . Behemoth 13 | . . . . . . 1 . . . . . . . 1 . . 1 . 1 . . . 2 . . . 2 . . 1 . 1 . 2 . . . . 1 . Compactor 5 | . . . . . . . . . . . . . . . . . . . . . 5 . . . . . . . . . . . . . . . . . . . Cetus Guard 2 | . . . . . . . . . . . . . . . . . . . . . . . . 2 . . . . . . . . . . . . . . . . M Guard 1 | . . . . . . . . . . . . . . . . . . . . . . . . . . . . . . . . . . . . . . . . 1 Enhanced Grunt 4 | . . . . . . . . . . . . . . . . . . 4 . . . . . . . . . . . . . . . . . . . . . . Lightning 6 | . . . . . . . . . . . . . . . . . . . . . . . . . . 6 . . . . . . . . . . . . . . Tracker 3 | . . . . . . . . . . . . . . . . . . . . . . . . . . 1 . . . . . . . . . . . . 2 . Combat Programmer 3 | . . . . . . . . . . . . . . . . . . . . . . . . . . 1 . . . . . . . . . . . . 2 . Investigator 1 | . . . . . . . . . . . . . . . . . . . . . . . . . . . . . . . . . . . . . 1 . . . Striker 6 | . . . . . . . . . . . . . . . . . . . . . . . . . . . 2 . . . 1 . . . . . 3 . . . Executioner 3 | . . . . . . . . . . . . . . . . . . . . . . . . . . . 1 . . . . . . . . . 2 . . . Z-Light 10 | . . . . . . . . . . . . . 10 . . . . . . . . . . . . . . . . . . . . . . . . . . . Decomposer 4 | . . . . . . . . . . . 1 . . . . . 3 . . . . . . . . . . . . . . . . . . . . . . . Packrat 1 | . . . . . . . . . . . 1 . . . . . . . . . . . . . . . . . . . . . . . . . . . . . Assembler 2 | . . . . . . . . . . . . . 2 . . . . . . . . . . . . . . . . . . . . . . . . . . . Assembled 39 | . . . . . . . . . . . . . 39 . . . . . . . . . . . . . . . . . . . . . . . . . . . Golem 16 | . . . . . . . . . . . . . 16 . . . . . . . . . . . . . . . . . . . . . . . . . . . Thug 6 | . . . . . . . . . . . . . . . . 6 . . . . . . . . . . . . . . . . . . . . . . . . Butcher 1 | . . . . . . . . . . . . . . . . . . . . . . . 1 . . . . . . . . . . . . . . . . . Wizard 1 | . . . . . . . . . . . . . . . . . . . . . . . . . . . . . . . . . . . . . . . . 1 Fireman 1 | . . . . . . . . . . . . . 1 . . . . . . . . . . . . . . . . . . . . . . . . . . . Mutant 1 | . . . . . . . . . . . . . . . . 1 . . . . . . . . . . . . . . . . . . . . . . . . Best Kill Streak 43 | 3 4 3 . 4 4 6 5 3 8 4 4 . 43 2 4 4 3 4 3 1 2 5 4 4 5 5 7 7 5 5 6 4 3 16 5 11 41 1 19 5 Combat Bots Only 41 | . 4 3 . 4 4 6 5 3 6 4 4 . 41 2 4 4 3 4 3 1 2 5 3 4 1 5 7 5 5 5 6 4 3 16 4 11 40 1 14 4 Max Kills in Single Turn 12 | 1 1 3 . 4 4 3 2 3 3 2 2 . 10 1 2 2 2 1 1 1 1 2 3 3 2 2 4 7 1 3 4 1 3 4 3 3 12 1 4 2 Gunslinging 1 | . . . . . 1 . . . 1 . . . . . . . . . . . . . . . . . . . . . . . . . . . . . . . Exploded 12 | . . 3 . 4 4 3 . 3 3 2 1 . 10 . . . . . 1 . . . . . . . 4 5 . . 4 . 2 4 2 3 12 . 2 . Melee 1 | . . . . . . . . . . . . . . . . . . . . . . . . . . 1 . . . . . . . . . . 1 . . . Uniques/NPCs Destroyed 2 | . . . . . . . . . . . . . 1 . . . . . . . . . . . . . . . . . . . . . . . . . . 1 Z-Imprinter (-7/Deep Caves) MAIN.C (-1/Command) Combat | -11 -10 -10 -10 -9 -8 -8 -8 -8 -7 -7 -7 -7 -7 -6 -6 -6 -6 -6 -5 -5 -5 -5 -5 -5 -5 -5 -5 -4 -4 -4 -4 -3 -3 -3 -3 -3 -3 -2 -1 -1 -------- Run | Yrd Mat Min Exi Min Mat Gar Mat Gar Fac Low Low Zio Dee Pro Fac Low Low Dat Pro Fac Was Fac Ext Cet Arc Hub Gar Fac Upp Upp War Pro Res Gar Res Gar Qua Res Acc Com Hostile Shots Fired 1954 | . 55 15 . 24 59 66 25 74 144 11 50 . 133 . 53 36 13 7 25 3 1 21 46 4 3 115 97 56 20 55 1 80 32 123 4 63 166 4 163 107 Missed 704 | . 16 1 . 7 23 19 8 20 49 4 20 . 40 . 20 10 3 2 11 2 . 6 22 3 1 29 47 26 6 20 . 32 13 55 1 20 72 1 50 45 Damage Taken 23975 | . 433 192 . 189 527 798 428 776 1582 102 259 . 2926 . 494 442 191 223 250 16 28 354 419 5 39 858 906 452 273 396 33 685 411 1393 288 906 2200 83 2373 2045 Core 2375 | . 76 12 . 24 32 52 . 137 125 33 36 . 335 . 44 54 14 . 46 . . 32 . . . 86 147 15 32 22 . 75 . 34 25 99 252 . 266 270 Absorbed by Shields 1484 | . . . . . . . . . . 39 106 . 82 . . . . . . . . . 69 5 . . 10 . . 138 . 477 28 . . 37 153 . 137 203 Redirected to Shielding 344 | . . . . . . . . . . . . . 277 . . . . . . . . . . . . . . . . . . . . . . . . . . 67 Ignored by Resistances 3527 | . . . . . . . . . . . . . . . 8 . . . . 3 6 69 96 2 9 2061 187 97 58 113 . . . . . . . 16 373 429 Regen/Repaired (Parts) 1050 | . . . . . 182 . . . 375 . . . . . 53 . . . . . . . . . . . . 11 . . 105 . . . 197 . . . . 127 Core Remaining (%) 70 | 100 . . . 55 . . . 59 . . . . . 24 . . . . 81 . . . . . . . 73 . . . . 87 . . . . 68 100 . 55 Volleys Fired 1443 | 7 89 14 . 18 60 63 34 51 89 5 17 . 106 12 40 27 27 10 33 2 15 35 34 12 41 69 67 23 32 25 27 42 23 52 18 49 53 7 52 63 Largest 4 | 2 2 2 . 2 3 3 3 3 3 3 3 . 3 3 3 3 3 1 2 3 3 3 3 3 3 3 3 3 3 3 3 3 3 4 3 4 4 3 4 2 Hottest 300 | 40 46 46 . 53 69 183 183 183 155 84 84 . 186 75 75 75 75 46 50 75 75 75 75 75 75 75 75 75 75 75 75 75 75 75 163 188 188 75 300 300 Shots Fired 3151 | 14 127 26 . 30 178 158 102 128 237 8 43 . 151 36 107 65 79 10 36 6 43 84 86 28 52 123 123 61 85 71 71 118 49 135 37 132 102 21 109 80 Gun 1164 | 14 127 24 . 25 177 156 102 127 223 5 39 . 56 . . . . . . . . . . . 33 42 14 . . . . . . . . . . . . . Cannon 1819 | . . . . . . . . . . . . . 56 36 107 65 79 . 6 6 43 84 86 28 19 81 105 60 85 71 69 118 48 126 34 130 73 21 105 78 Launcher 115 | . . 2 . 5 1 2 . 1 14 3 4 . 39 . . . . 10 30 . . . . . . . 3 1 . . . . . . . . . . . . Special 53 | . . . . . . . . . . . . . . . . . . . . . . . . . . . 1 . . . 2 . 1 9 3 2 29 . 4 2 Kinetic 728 | 14 127 24 . 25 177 . . . 194 5 39 . 34 . . . . . . . . . . . 33 42 14 . . . . . . . . . . . . . Thermal 2159 | . . . . . . 156 102 126 . . . . 37 36 107 65 79 . 6 6 43 84 86 28 19 81 106 60 85 71 69 118 48 126 34 130 73 21 105 52 Explosive 100 | . . 2 . 5 1 2 . 1 . 3 . . 31 . . . . . . . . . . . . . 3 1 . . 2 . 1 9 3 2 29 . 4 1 Electromagnetic 163 | . . . . . . . . 1 43 . 4 . 49 . . . . 10 30 . . . . . . . . . . . . . . . . . . . . 26 Robot Hit Streak 41 | 3 9 6 . 4 10 11 20 11 12 4 6 . 9 13 18 14 24 13 6 7 21 30 39 11 25 20 13 27 39 19 28 39 7 31 20 41 25 28 31 14 Robot Miss Streak 13 | 5 4 3 . 5 8 4 3 3 8 2 9 . 13 . 2 1 2 1 2 . 2 1 1 1 1 2 1 1 1 1 2 1 2 1 3 2 1 1 2 2 Penetration Max 2 | . . . . . . . . . 1 . . . . . . . . . . . . . . . 2 . . . . . . . . . . . . . . 1 Secondary Targets 35 | . 1 . . . 1 2 2 2 6 . 3 . . . . . . . . . . . . . . . . . . 7 1 5 . 1 . 2 2 . . . Max Gunslinging Chain 2 | . 1 . . . 1 1 1 1 1 . 1 . . . . . . . . . . . . . . . . . . 2 1 1 . 1 . 1 1 . . . Shots Hit Robots 2011 | 6 85 17 . 23 123 87 65 72 154 3 36 . 92 8 54 30 34 8 9 5 33 54 48 16 43 127 91 38 49 45 51 96 23 87 21 80 60 5 69 64 Core Hits 1588 | 5 38 13 . 15 75 48 26 25 153 9 43 . 254 6 31 18 12 13 15 1 10 25 25 9 27 63 57 28 21 22 27 31 10 61 23 43 231 1 45 29 Critical Kills 4 | . . . . . . . . . . . . . . . . . . . . . . . . . . . . . . . . . . . . . 2 . . 2 Critical Parts Destroyed 12 | . . . . . 1 . . . 2 . . . . . . . . . . . . . . . 1 4 . . . . . . . . . . . . . 4 Critical Strikes 68 | . . . . . 1 13 5 11 3 . . . 2 . . . . . . . . . . . 1 8 1 . . . 1 . . 2 . . 3 . 3 14 Burn 23 | . . . . . . 7 5 11 . . . . . . . . . . . . . . . . . . . . . . . . . . . . . . . . Meltdown 3 | . . . . . . . . . . . . . . . . . . . . . . . . . . . . . . . . . . . . . 2 . . 1 Destroy 14 | . . . . . 1 . . . 2 . . . . . . . . . . . . . . . 1 4 . . . . . . . . . . . . 1 5 Corrupt 11 | . . . . . . . . . 1 . . . 2 . . . . . . . . . . . . . . . . . . . . . . . . . . 8 Sever 17 | . . . . . . 6 . . . . . . . . . . . . . . . . . . . 4 1 . . . 1 . . 2 . . 1 . 2 . Melee Attacks 110 | . . . . . 2 27 . 3 6 . 4 1 . . . . . 1 . . . . . . . 34 9 . . . 10 . 1 4 . . 4 2 2 . Kinetic 1 | . . . . . . . . . . . . . . . . . . . . . . . . . . . . . . . . . . . . . . . 1 . Impact . | . . . . . . . . . . . . . . . . . . . . . . . . . . . . . . . . . . . . . . . . . Slashing 108 | . . . . . 2 27 . 3 6 . 4 1 . . . . . . . . . . . . . 34 9 . . . 10 . 1 4 . . 4 2 1 . Piercing 1 | . . . . . . . . . . . . . . . . . . 1 . . . . . . . . . . . . . . . . . . . . . . Sneak Attacks 13 | . . . . . . . . . . . 2 . . . . . . 1 . . . . . . . . 9 . . . . . . 1 . . . . . . Combat Hostiles . | . . . . . . . . . . . . . . . . . . . . . . . . . . . . . . . . . . . . . . . . . Follow-up Attacks . | . . . . . . . . . . . . . . . . . . . . . . . . . . . . . . . . . . . . . . . . . Damage Inflicted 126107 | 60 1077 418 . 630 2192 2964 1396 1729 4484 338 933 . 8915 424 3368 1560 1438 622 967 236 2196 3508 4046 1290 1701 6116 6179 2872 2664 2362 4598 5212 1655 7581 2386 5176 23168 305 5500 3841 Guns 15688 | 60 1056 291 . 293 1944 1534 1396 1547 3405 47 592 . 644 . . . . . . . . . . . 881 1517 481 . . . . . . . . . . . . . Cannons 62966 | . . . . . . . . . . . . . 1422 424 3282 1560 1438 . 110 236 2196 3508 4014 1290 820 2906 4119 2215 2664 2362 3172 5212 1187 4184 921 3891 1962 305 3765 3801 Explosions 40921 | . . 127 . 337 221 249 . 182 1079 291 155 . 6849 . 24 . . 553 857 . . . . . . . 722 657 . . 1328 . 360 2877 1282 1183 20060 . 1528 . Melee 4284 | . . . . . . 1181 . . . . 186 . . . . . . 69 . . . . . . . 1632 839 . . . . . . 187 . . 146 . 44 . Ramming 269 | . 21 . . . 27 . . . . . . . . . 62 . . . . . . . 32 . . 61 . . . . . . 63 . . . . . 3 . Kinetic 10649 | 60 1056 291 . 293 1944 . . . 3085 47 592 . 402 . . . . . . . . . . . 881 1517 481 . . . . . . . . . . . . . Thermal 66656 | . . . . . . 1534 1396 1547 . . . . 1350 424 3282 1560 1438 101 171 236 2196 3508 4014 1290 820 2906 4137 2327 2664 2362 3172 5212 1187 4184 921 3891 1962 305 3765 2794 Explosive 37496 | . . 127 . 337 221 249 . 182 . 291 . . 6180 . 24 . . . . . . . . . . . 722 545 . . 1328 . 360 2877 1282 1183 20060 . 1528 . Electromagnetic 4792 | . . . . . . . . . 1399 . 155 . 983 . . . . 452 796 . . . . . . . . . . . . . . . . . . . . 1007 Impact . | . . . . . . . . . . . . . . . . . . . . . . . . . . . . . . . . . . . . . . . . . Slashing 6176 | . . . . . . 1181 . . . . 186 . . . . . . . . . . . . . . 1632 839 . . . 98 . 45 520 183 102 1146 . 204 40 Piercing 69 | . . . . . . . . . . . . . . . . . . 69 . . . . . . . . . . . . . . . . . . . . . . Highest Corruption 31 | . . . . . . . . 3 2 . . . . . . . . . 11 . 16 16 16 16 16 4 22 1 . . . . 2 2 2 5 11 . 16 31 Average Corruption 7 | . . . . . . . . 2 1 . . . . . . . . . 9 . 9 16 16 16 10 3 5 1 . . . . 2 2 2 4 7 . 12 18 Corruption Purged 30 | . . . . . . . . . 2 . . . . . . . . . . . . . . . 23 . . 1 . . . . . . . 4 . . . . Corruption Blocked 166 | . . . . . . . . . . . . . . . . . . . . . . . . . . . . . . . . . . . . . . 54 . 112 Effects 336 | . . . . . . . . 8 15 . . . . . . . . . 22 . 8 37 52 16 17 15 35 . . . . . 1 17 6 26 14 . 8 39 Message Errors 76 | . . . . . . . . 5 4 . . . . . . . . . 5 . 2 10 11 6 2 . 7 . . . . . . 4 . 7 6 . 1 6 Matter Fused 90 | . . . . . . . . . 3 . . . . . . . . . 8 . 1 5 15 4 7 6 11 . . . . . . 3 3 8 4 . 4 8 Heat Flow Errors 39 | . . . . . . . . . 2 . . . . . . . . . 1 . 1 7 10 2 2 1 7 . . . . . . 1 . 2 . . . 3 Energy Discharges 36 | . . . . . . . . . . . . . . . . . . . 5 . 2 5 8 . 1 1 2 . . . . . . 1 . 1 2 . 2 6 Parts Rejected 5 | . . . . . . . . . . . . . . . . . . . . . 1 . 1 . . 1 . . . . . . 1 . . . . . . 1 Parts Fused 8 | . . . . . . . . . . . . . . . . . . . . . . . 2 . . . 2 . . . . . . . . 1 . . . 3 Data Loss (minor) 37 | . . . . . . . . 1 1 . . . . . . . . . 1 . 1 5 3 2 1 3 2 . . . . . . 4 2 3 . . . 8 Data Loss (major) 13 | . . . . . . . . 2 2 . . . . . . . . . 1 . . 1 . 2 . . . . . . . . . 1 . . 2 . . 2 Misfires 11 | . . . . . . . . . . . . . . . . . . . . . . 1 1 . . 2 2 . . . . . . 2 1 1 . . . 1 Alerts 8 | . . . . . . . . . 2 . . . . . . . . . 1 . . 1 . . . 1 2 . . . . . . . . . . . . 1 Misdirections 2 | . . . . . . . . . . . . . . . . . . . . . . . . . 1 . . . . . . . . . . . . . 1 . Weapon Failures 11 | . . . . . . . . . 1 . . . . . . . . . . . . 2 1 . 3 . . . . . . . . 1 . 3 . . . . Overload Shots . | . . . . . . . . . . . . . . . . . . . . . . . . . . . . . . . . . . . . . . . . . Overflow Damage 4288 | . . . . . . 56 . 16 18 14 107 . 84 79 282 24 94 9 32 21 48 115 393 34 . 134 282 120 92 196 165 67 255 379 72 417 409 24 77 173 Projectiles 3331 | . . . . . . . . . . . . . . 79 282 24 94 . 32 21 48 115 393 34 . 102 172 101 92 196 165 67 217 230 58 395 165 24 52 173 Explosions 578 | . . . . . . 2 . 16 18 14 . . 84 . . . . . . . . . . . . . 51 19 . . . . . 69 14 22 244 . 25 . Melee 379 | . . . . . . 54 . . . . 107 . . . . . . 9 . . . . . . . 32 59 . . . . . 38 80 . . . . . . Knockbacks 3 | . . . . . . . . . . . . . . . . . . . . . . . 1 . . 1 . . . . . . 1 . . . . . . . Impact 3 | . . . . . . . . . . . . . . . . . . . . . . . 1 . . 1 . . . . . . 1 . . . . . . . Kinetic . | . . . . . . . . . . . . . . . . . . . . . . . . . . . . . . . . . . . . . . . . . Secondary . | . . . . . . . . . . . . . . . . . . . . . . . . . . . . . . . . . . . . . . . . . Self-Inflicted Damage 256 | . 8 19 . 48 . . . . 10 44 . . 49 . . . . . 52 . . . . . . 26 . . . . . . . . . . . . . . Shots 10 | . . 1 . 1 . . . . 1 1 . . 1 . . . . . 4 . . . . . . 1 . . . . . . . . . . . . . . Rammed 4 | . 3 . . . 1 . . . . . . . . . . . . . . . . . . . . . . . . . . . . . . . . . . . Targets Rammed 17 | . 3 . . . 1 . . . . . . . . . 4 . . . . . . . 3 . . 4 . . . . . . 1 . . . . . 1 . Kicked 13 | . . . . . . . . . . . . . . . 4 . . . . . . . 3 . . 4 . . . . . . 1 . . . . . 1 . Crushed . | . . . . . . . . . . . . . . . . . . . . . . . . . . . . . . . . . . . . . . . . . Highest Temperature 462 | . 27 . . 5 101 462 216 323 288 21 117 . 220 22 27 16 6 170 230 . 244 254 264 252 146 239 219 . 28 9 27 45 . 239 180 234 . . 257 239 Average Temperature 63 | . 10 . . 3 22 110 54 64 63 11 54 . 52 16 19 5 3 85 83 . 47 77 96 115 55 87 80 . 10 6 8 16 . 59 73 55 . . 66 78 Received Heat Transfer 3808 | . 210 93 . 18 261 333 54 180 477 . 24 . 612 . 81 81 18 . 33 . . 127 83 . 9 63 99 27 85 55 . 54 71 225 21 68 148 . 171 27 Effects 5 | . . . . . . . . 4 . . . . . . . . . . . . . . . . . 1 . . . . . . . . . . . . . . Interference 4 | . . . . . . . . 3 . . . . . . . . . . . . . . . . . 1 . . . . . . . . . . . . . . Matter Decay 1 | . . . . . . . . 1 . . . . . . . . . . . . . . . . . . . . . . . . . . . . . . . . Siege Activations . | . . . . . . . . . . . . . . . . . . . . . . . . . . . . . . . . . . . . . . . . . Robots Corrupted 18 | . . . . . . . . . 5 . . . 5 . . . . 4 2 . . . . . . . . . . . . . . . . . . . . 2 Combat Hostiles 18 | . . . . . . . . . 5 . . . 5 . . . . 4 2 . . . . . . . . . . . . . . . . . . . . 2 Parts Fried 36 | . . . . . . . . . 2 . 1 . 11 . . . . 10 5 . . . . . . . . . . . . . . . . . . . . 7 Impact Corruptions 1 | . . . . . . . . . . . . . . . . . . . . . . . . . . . . . . . . . 1 . . . . . . . Robots Melted 11 | . . . . . . 2 1 3 . . . . . . . . . . . . . . . . . . . . . . . 1 . 1 . . 2 . . 1 Combat Hostiles 11 | . . . . . . 2 1 3 . . . . . . . . . . . . . . . . . . . . . . . 1 . 1 . . 2 . . 1 Parts Melted 93 | . . . . . 1 8 18 15 . . . . 1 . 2 1 . . . . . 1 . . . 5 1 2 1 . 2 4 . 10 2 7 5 . 3 4 Heat Transferred 38369 | . . . . . . 3293 2923 3441 . . . . 825 225 1450 800 750 100 125 125 850 1450 1600 487 350 1215 1862 1100 1375 1200 1171 2375 575 2075 500 2084 1072 150 1927 894 Parts Sabotaged 1 | . . . . . . . . . . . . . . . . . . . . . . . . . . . . . . . . . . . . . 1 . . . Parts Stolen . | . . . . . . . . . . . . . . . . . . . . . . . . . . . . . . . . . . . . . . . . . Parts Stripped 14 | . . . . . . . . . . . . . . . . . . . . . . . . . . . . . . . . . . . . . . . 14 . Power Chain Reactions 7 | . . . . . . . . . 1 . 1 . 3 . . . . 1 1 . . . . . . . . . . . . . . . . . . . . . Missiles Intercepted 6 | . . . . . . . . . . . . . . . . . . . . . . . . . . . . . . . . . . . . . . . . 6 Alert | -11 -10 -10 -10 -9 -8 -8 -8 -8 -7 -7 -7 -7 -7 -6 -6 -6 -6 -6 -5 -5 -5 -5 -5 -5 -5 -5 -5 -4 -4 -4 -4 -3 -3 -3 -3 -3 -3 -2 -1 -1 ------- Run | Yrd Mat Min Exi Min Mat Gar Mat Gar Fac Low Low Zio Dee Pro Fac Low Low Dat Pro Fac Was Fac Ext Cet Arc Hub Gar Fac Upp Upp War Pro Res Gar Res Gar Qua Res Acc Com Peak Influence 4192 | 15 265 176 . 265 345 1591 983 1540 995 . . . . . 475 . . . . 347 139 491 563 549 543 901 1917 1339 . . . . 501 2149 1721 2021 4192 2565 2123 1489 Initial 2358 | . 9 11 . . 25 224 775 445 808 . . . . . 152 . . . . 300 121 97 230 116 219 . 294 1005 . . . . 63 391 1208 649 1136 2358 1444 1358 Average 677 | 2 60 158 . 97 118 779 876 1097 889 . . . . . 275 . . . . 304 133 346 297 307 118 438 1111 1182 . . . . 209 1373 1181 1414 2719 2425 1577 1414 Maximum Alert Level 5 | . 1 . . 1 1 4 3 4 3 . . . . . 2 . . . . 1 . 2 2 2 2 3 5 4 . . . . 2 5 5 5 5 5 5 4 Low Security (%) 28 | 100 95 100 . 90 83 . . . . . . . . . 21 . . . . . 100 13 18 10 77 12 . . . . . . 49 . . . . . . . Level 1 17 | . 4 . . 9 16 31 . . . . . . . . 70 . . . . 100 . 42 60 65 13 18 1 . . . . . 39 1 . . . . . . Level 2 11 | . . . . . . 8 8 17 . . . . . . 7 . . . . . . 44 21 24 8 64 23 . . . . . 10 12 . 1 . . . . Level 3 20 | . . . . . . 37 91 26 100 . . . . . . . . . . . . . . . . 4 34 22 . . . . . 9 55 31 . . . . Level 4 14 | . . . . . . 23 . 55 . . . . . . . . . . . . . . . . . . 13 77 . . . . . 37 24 20 . . 78 100 Level 5 6 | . . . . . . . . . . . . . . . . . . . . . . . . . . . 25 . . . . . . 38 20 45 . 91 21 . High Security . | . . . . . . . . . . . . . . . . . . . . . . . . . . . . . . . . . . . . . . 8 . . Max Security 1 | . . . . . . . . . . . . . . . . . . . . . . . . . . . . . . . . . . . . . 99 . . . Squads Dispatched 102 | . 2 . . . 5 . 1 . 13 . . . . . 10 . . . . 2 . 4 1 . . 7 . 6 . . . . 2 . 7 . 22 1 11 8 Investigation 16 | . . . . . 2 . . . 3 . . . . . 3 . . . . 2 . 1 1 . . 1 . 1 . . . . . . 2 . . . . . Extermination 19 | . . . . . . . . . 5 . . . . . 3 . . . . . . 1 . . . 2 . 3 . . . . 1 . 1 . . . 1 2 Reinforcement 17 | . 2 . . . 1 . 1 . 2 . . . . . 1 . . . . . . 1 . . . 2 . . . . . . . . 1 . . . 2 4 Assault 35 | . . . . . . . . . 3 . . . . . . . . . . . . 1 . . . . . 2 . . . . . . 1 . 21 . 5 2 Garrison 9 | . . . . . 2 . . . . . . . . . 3 . . . . . . . . . . . . . . . . . 1 . 2 . 1 . . . Intercept 6 | . . . . . . . . . . . . . . . . . . . . . . . . . . 2 . . . . . . . . . . . 1 3 . Searches Triggered . | . . . . . . . . . . . . . . . . . . . . . . . . . . . . . . . . . . . . . . . . . Construction Impeded . | . . . . . . . . . . . . . . . . . . . . . . . . . . . . . . . . . . . . . . . . . Haulers Reinforced 2 | . . . . . . . . . . . . . . . . . . . . . . 1 . . . . . . . . . . . . . . . . 1 . Active Scanning Responses . | . . . . . . . . . . . . . . . . . . . . . . . . . . . . . . . . . . . . . . . . . Cargo Convoy Interrupts . | . . . . . . . . . . . . . . . . . . . . . . . . . . . . . . . . . . . . . . . . . Stealth | -11 -10 -10 -10 -9 -8 -8 -8 -8 -7 -7 -7 -7 -7 -6 -6 -6 -6 -6 -5 -5 -5 -5 -5 -5 -5 -5 -5 -4 -4 -4 -4 -3 -3 -3 -3 -3 -3 -2 -1 -1 --------- Run | Yrd Mat Min Exi Min Mat Gar Mat Gar Fac Low Low Zio Dee Pro Fac Low Low Dat Pro Fac Was Fac Ext Cet Arc Hub Gar Fac Upp Upp War Pro Res Gar Res Gar Qua Res Acc Com Distress Signals 20 | . . . . . 5 . 2 . 1 . . . . . . . . . . . . . 1 1 . 1 . . . . 1 . . . 2 . . 2 2 2 Communications Jammed . | . . . . . . . . . . . . . . . . . . . . . . . . . . . . . . . . . . . . . . . . . Distress Signals . | . . . . . . . . . . . . . . . . . . . . . . . . . . . . . . . . . . . . . . . . . Times Spotted 867 | . 25 6 . 12 45 25 18 24 49 4 7 . 49 2 21 11 5 4 8 1 5 13 24 10 18 38 41 18 12 21 53 21 11 33 22 31 100 6 37 37 Peak Tracking Total 36 | . 5 3 . 4 8 4 4 3 6 4 5 . 29 2 4 4 3 4 3 . 2 4 6 5 1 5 5 7 4 5 15 4 3 7 6 7 36 6 10 8 Tactical Retreats 15 | . . 1 . . 3 1 2 1 2 . 1 . . . . . . . 1 . . 1 . . . 1 . . . . . . . . . . . 1 . . Traps | -11 -10 -10 -10 -9 -8 -8 -8 -8 -7 -7 -7 -7 -7 -6 -6 -6 -6 -6 -5 -5 -5 -5 -5 -5 -5 -5 -5 -4 -4 -4 -4 -3 -3 -3 -3 -3 -3 -2 -1 -1 ------- Run | Yrd Mat Min Exi Min Mat Gar Mat Gar Fac Low Low Zio Dee Pro Fac Low Low Dat Pro Fac Was Fac Ext Cet Arc Hub Gar Fac Upp Upp War Pro Res Gar Res Gar Qua Res Acc Com Traps Triggered 18 | . . . . . . 6 . 1 . . . . . . 3 . . . . 1 . . . . . . 2 2 . . . . . 1 . 2 . . . . Indirectly . | . . . . . . . . . . . . . . . . . . . . . . . . . . . . . . . . . . . . . . . . . Trap Hack Attempts . | . . . . . . . . . . . . . . . . . . . . . . . . . . . . . . . . . . . . . . . . . Triggered . | . . . . . . . . . . . . . . . . . . . . . . . . . . . . . . . . . . . . . . . . . Disarmed . | . . . . . . . . . . . . . . . . . . . . . . . . . . . . . . . . . . . . . . . . . Reprogrammed 6 | . . . . . . . . . 6 . . . . . . . . . . . . . . . . . . . . . . . . . . . . . . . Reused 2 | . . . . . . . . . 2 . . . . . . . . . . . . . . . . . . . . . . . . . . . . . . . Traps Reconfigurated 3 | . . . . . . . . . . . . . . . . . . . . 3 . . . . . . . . . . . . . . . . . . . . Traps Extracted . | . . . . . . . . . . . . . . . . . . . . . . . . . . . . . . . . . . . . . . . . . Installed . | . . . . . . . . . . . . . . . . . . . . . . . . . . . . . . . . . . . . . . . . . Triggered 19 | . . . . . . . . . 2 3 . . . 1 . . . . . . . . . . . . . . . . 10 . . . . . . . . 3 Machines | -11 -10 -10 -10 -9 -8 -8 -8 -8 -7 -7 -7 -7 -7 -6 -6 -6 -6 -6 -5 -5 -5 -5 -5 -5 -5 -5 -5 -4 -4 -4 -4 -3 -3 -3 -3 -3 -3 -2 -1 -1 ---------- Run | Yrd Mat Min Exi Min Mat Gar Mat Gar Fac Low Low Zio Dee Pro Fac Low Low Dat Pro Fac Was Fac Ext Cet Arc Hub Gar Fac Upp Upp War Pro Res Gar Res Gar Qua Res Acc Com Machines Disabled 106 | . . . . . . 8 . 10 3 . . . 2 . 8 . . . . . . 3 . 3 7 9 3 3 2 . 3 2 3 17 . 9 8 1 2 . Max in Single Turn 5 | . . . . . . 1 . 2 1 . . . 1 . 3 . . . . . . 1 . 1 1 5 1 2 1 . 1 1 1 3 . 2 2 1 1 . Garrison Access 7 | . . . . . . . . . 2 . . . . . 1 . . . . . . . . . . . . . . . . . . . . . 1 2 1 . Garrison Relay 24 | . . . . . . 6 . 5 . . . . . . . . . . . . . . . . . . 7 . . . . . . 3 . 3 . . . . Phase Generator 4 | . . . . . . . . 1 . . . . . . . . . . . . . . . . . . 1 . . . . . . 1 . 1 . . . . Network Hub 3 | . . . . . . . . . . . . . . . . . . . . . . . . . . 3 . . . . . . . . . . . . . . Machines Repaired . | . . . . . . . . . . . . . . . . . . . . . . . . . . . . . . . . . . . . . . . . . Machines Dismantled 13 | . . . . . . . . . . . . 3 . . . . . . . . . . . . . . 10 . . . . . . . . . . . . . Machines Sabotaged 1 | . . . . . . . . . . . . . . . . . . . . . . . . . . 1 . . . . . . . . . . . . . . Overloaded Fab Kills . | . . . . . . . . . . . . . . . . . . . . . . . . . . . . . . . . . . . . . . . . . Hacking | -11 -10 -10 -10 -9 -8 -8 -8 -8 -7 -7 -7 -7 -7 -6 -6 -6 -6 -6 -5 -5 -5 -5 -5 -5 -5 -5 -5 -4 -4 -4 -4 -3 -3 -3 -3 -3 -3 -2 -1 -1 --------- Run | Yrd Mat Min Exi Min Mat Gar Mat Gar Fac Low Low Zio Dee Pro Fac Low Low Dat Pro Fac Was Fac Ext Cet Arc Hub Gar Fac Upp Upp War Pro Res Gar Res Gar Qua Res Acc Com Machines Accessed 114 | . 4 . 2 . 10 3 4 3 17 . . . . . 14 . . 4 . 2 . 3 9 . . 8 2 4 1 1 4 . 3 2 5 3 . 1 2 3 Terminals 71 | . 4 . . . 7 3 2 3 8 . . . . . 8 . . . . . . 2 9 . . 7 2 2 . 1 . . 2 2 2 3 . . 1 3 Fabricators 11 | . . . . . . . . . 3 . . . . . 3 . . . . 2 . 1 . . . . . 1 . . . . . . 1 . . . . . Repair Stations 9 | . . . . . 1 . 1 . 3 . . . . . 2 . . . . . . . . . . . . 1 . . . . . . 1 . . . . . Recycling Units 1 | . . . . . . . . . 1 . . . . . . . . . . . . . . . . . . . . . . . . . . . . . . . Scanalyzers 1 | . . . . . 1 . . . . . . . . . . . . . . . . . . . . . . . . . . . . . . . . . . . Garrison Access 10 | . . . . . 1 . 1 . 2 . . . . . 1 . . . . . . . . . . 1 . . . . . . 1 . 1 . . 1 1 . Total Hacks 426 | . 11 . 2 . 38 7 8 6 61 . . . . . 32 . . 30 . 8 . 5 21 . . 47 6 32 1 9 6 . 8 12 42 12 . 3 9 10 Successful 241 | . 4 . 2 . 26 3 5 1 42 . . . . . 16 . . 30 . 5 . 1 12 . . 17 2 18 1 9 6 . 2 3 25 3 . 1 4 3 Failed 184 | . 7 . . . 11 4 3 5 19 . . . . . 16 . . . . 3 . 4 9 . . 30 4 14 . . . . 6 9 17 9 . 2 5 7 Catastrophic 48 | . 2 . . . 3 . . 3 5 . . . . . 4 . . . . . . 2 1 . . 8 1 2 . . . . 4 1 7 1 . . 3 1 Database Lockouts 1 | . . . . . 1 . . . . . . . . . . . . . . . . . . . . . . . . . . . . . . . . . . . Manual 163 | . 5 . 1 . 19 . 3 1 21 . . . . . 14 . . . . 2 . . 8 1 . 27 4 18 . . 1 . 2 6 18 4 . . 6 2 Terminals 271 | . 11 . . . 21 7 5 6 29 . . . . . 20 . . . . . . 3 21 . . 44 6 22 . 9 . . 5 12 21 12 . . 7 10 Fabricators 47 | . . . . . . . . . 12 . . . . . 8 . . . . 8 . 2 . . . . . 6 . . . . . . 11 . . . . . Repair Stations 33 | . . . . . 11 . 1 . 11 . . . . . 3 . . . . . . . . . . . . 4 . . . . . . 3 . . . . . Recycling Units 5 | . . . . . . . . . 5 . . . . . . . . . . . . . . . . . . . . . . . . . . . . . . . Scanalyzers 3 | . . . . . 3 . . . . . . . . . . . . . . . . . . . . . . . . . . . . . . . . . . . Garrison Access 28 | . . . . . 3 . 2 . 4 . . . . . 1 . . . . . . . . . . 3 . . . . . . 3 . 7 . . 3 2 . Terminal Hacks 128 | . 2 . 2 . 8 3 2 1 15 . . . . . 6 . . 30 . . . . 8 . . 7 2 8 1 9 6 . 1 3 7 3 . . 2 2 Record 26 | . . . 1 . . . . . . . . . . . . . . 11 . . . . . . . . . . . 9 5 . . . . . . . . . Part Schematic 15 | . . . . . . . . . 2 . . . . . 2 . . 10 . . . . . . . . . 1 . . . . . . . . . . . . Robot Schematic 6 | . . . . . . . . . . . . . . . . . . 6 . . . . . . . . . . . . . . . . . . . . . . Robot Analysis 3 | . . . . . 1 . 1 . 1 . . . . . . . . . . . . . . . . . . . . . . . . . . . . . . . Prototype ID Bank 9 | . 1 . . . 1 . . . 3 . . . . . . . . 3 . . . . . . . . . 1 . . . . . . . . . . . . Open Door 9 | . . . . . . 1 . . . . . . . . . . . . . . . . 3 . . . . . 1 . 1 . . 1 . 1 . . . 1 Branch Access Points 6 | . 1 . . . . . . . 1 . . . . . 1 . . . . . . . . . . . . 1 . . . . 1 . 1 . . . . . Emergency Access Points 4 | . . . . . . 1 . . 1 . . . . . . . . . . . . . . . . . 1 . . . . . . 1 . . . . . . Terminal Index 3 | . . . . . 1 . . . 1 . . . . . 1 . . . . . . . . . . . . . . . . . . . . . . . . . Fabricator Index 1 | . . . . . . . . . . . . . . . 1 . . . . . . . . . . . . . . . . . . . . . . . . . Garrison Index 1 | . . . . . 1 . . . . . . . . . . . . . . . . . . . . . . . . . . . . . . . . . . . Alert Level 5 | . . . . . . . . . . . . . . . . . . . . . . . . . . 2 . 1 . . . . . . 1 . . . 1 . Unreport Threat 16 | . . . . . 1 . 1 . 2 . . . . . . . . . . . . . 3 . . 3 . 1 . . . . . . 5 . . . . . Locate Traps 4 | . . . . . . . . . 1 . . . . . 1 . . . . . . . 1 . . 1 . . . . . . . . . . . . . . Reprogram Traps 1 | . . . . . . . . . 1 . . . . . . . . . . . . . . . . . . . . . . . . . . . . . . . Recall Extermination 1 | . . . . . . . . . . . . . . . . . . . . . . . . . . . . 1 . . . . . . . . . . . . Hauler Manifests 4 | . . . . . 1 . . . 1 . . . . . . . . . . . . . 1 . . . . 1 . . . . . . . . . . . . Zone Layout 6 | . . . . . 2 . . . 1 . . . . . . . . . . . . . . . . 1 . 1 . . . . . . . . . . 1 . Garrison Registry 4 | . . . . . . . . 1 . . . . . . . . . . . . . . . . . . 1 . . . . . . 1 . 1 . . . . Patrol Navigation 2 | . . . . . . 1 . . . . . . . . . . . . . . . . . . . . . . . . . . . . . 1 . . . . Derelict Proto ID Bank 1 | . . . 1 . . . . . . . . . . . . . . . . . . . . . . . . . . . . . . . . . . . . . Disengage Seal 1 | . . . . . . . . . . . . . . . . . . . . . . . . . . . . . . . . . . . . . . . . 1 Fabricator Hacks 17 | . . . . . . . . . 4 . . . . . 3 . . . . 3 . 1 . . . . . 3 . . . . . . 3 . . . . . Network Status 5 | . . . . . . . . . 2 . . . . . 1 . . . . . . . . . . . . 1 . . . . . . 1 . . . . . Load Schematic 7 | . . . . . . . . . 1 . . . . . 1 . . . . 2 . 1 . . . . . 1 . . . . . . 1 . . . . . Build 5 | . . . . . . . . . 1 . . . . . 1 . . . . 1 . . . . . . . 1 . . . . . . 1 . . . . . Repair Station Hacks 26 | . . . . . 10 . . . 10 . . . . . 2 . . . . . . . . . . . . 2 . . . . . . 2 . . . . . Scan Component 13 | . . . . . 5 . . . 5 . . . . . 1 . . . . . . . . . . . . 1 . . . . . . 1 . . . . . Repair 13 | . . . . . 5 . . . 5 . . . . . 1 . . . . . . . . . . . . 1 . . . . . . 1 . . . . . Recycling Unit Hacks 3 | . . . . . . . . . 3 . . . . . . . . . . . . . . . . . . . . . . . . . . . . . . . Retrieve Matter 1 | . . . . . . . . . 1 . . . . . . . . . . . . . . . . . . . . . . . . . . . . . . . Retrieve Components 2 | . . . . . . . . . 2 . . . . . . . . . . . . . . . . . . . . . . . . . . . . . . . Scanalyzer 2 | . . . . . 2 . . . . . . . . . . . . . . . . . . . . . . . . . . . . . . . . . . . Insert Component 1 | . . . . . 1 . . . . . . . . . . . . . . . . . . . . . . . . . . . . . . . . . . . Analyze 1 | . . . . . 1 . . . . . . . . . . . . . . . . . . . . . . . . . . . . . . . . . . . Garrison Access Hacks 10 | . . . . . 1 . 1 . 2 . . . . . 1 . . . . . . . . . . 1 . . . . . . 1 . 1 . . 1 1 . Unlock Access 5 | . . . . . 1 . 1 . . . . . . . . . . . . . . . . . . 1 . . . . . . 1 . 1 . . . . . Seal Access 5 | . . . . . . . . . 2 . . . . . 1 . . . . . . . . . . . . . . . . . . . . . . 1 1 . Unauthorized Hacks 55 | . 2 . . . 5 . 2 . 8 . . . . . 4 . . . . 2 . . 4 . . 9 . 5 . . . . . . 12 . . . 1 1 Terminals 33 | . 2 . . . 4 . 1 . 3 . . . . . 3 . . . . . . . 4 . . 8 . 3 . . . . . . 3 . . . 1 1 Track 1 | . . . . . . . . . . . . . . . . . . . . . . . . . . 1 . . . . . . . . . . . . . . Assimilate 7 | . . . . . 1 . . . 1 . . . . . . . . . . . . . 2 . . 3 . . . . . . . . . . . . . . Botnet 19 | . 1 . . . 3 . 1 . 2 . . . . . 2 . . . . . . . 2 . . 2 . 2 . . . . . . 2 . . . 1 1 Operators 5 | . 1 . . . . . . . . . . . . . 1 . . . . . . . . . . 1 . 1 . . . . . . 1 . . . . . Sabotage 1 | . . . . . . . . . . . . . . . . . . . . . . . . . . 1 . . . . . . . . . . . . . . Fabricators 13 | . . . . . . . . . 5 . . . . . 1 . . . . 2 . . . . . . . 2 . . . . . . 3 . . . . . Report 1 | . . . . . . . . . 1 . . . . . . . . . . . . . . . . . . . . . . . . . . . . . . . Prioritize 3 | . . . . . . . . . . . . . . . . . . . . 1 . . . . . . . 1 . . . . . . 1 . . . . . Liberate 5 | . . . . . . . . . 2 . . . . . . . . . . 1 . . . . . . . 1 . . . . . . 1 . . . . . Fabnet 1 | . . . . . . . . . . . . . . . . . . . . . . . . . . . . . . . . . . . 1 . . . . . Haulers 3 | . . . . . . . . . 2 . . . . . 1 . . . . . . . . . . . . . . . . . . . . . . . . . Repair Stations . | . . . . . . . . . . . . . . . . . . . . . . . . . . . . . . . . . . . . . . . . . Recycling Units . | . . . . . . . . . . . . . . . . . . . . . . . . . . . . . . . . . . . . . . . . . Scanalyzers . | . . . . . . . . . . . . . . . . . . . . . . . . . . . . . . . . . . . . . . . . . Garrison Access 9 | . . . . . 1 . 1 . . . . . . . . . . . . . . . . . . 1 . . . . . . . . 6 . . . . . Broadcast 1 | . . . . . . . . . . . . . . . . . . . . . . . . . . . . . . . . . . . 1 . . . . . Decoy 1 | . . . . . . . . . . . . . . . . . . . . . . . . . . . . . . . . . . . 1 . . . . . Redirect 1 | . . . . . . . . . . . . . . . . . . . . . . . . . . . . . . . . . . . 1 . . . . . Reprogram 3 | . . . . . 1 . 1 . . . . . . . . . . . . . . . . . . . . . . . . . . . 1 . . . . . Intercept 2 | . . . . . . . . . . . . . . . . . . . . . . . . . . 1 . . . . . . . . 1 . . . . . Watchers 1 | . . . . . . . . . . . . . . . . . . . . . . . . . . . . . . . . . . . 1 . . . . . Data Cores Recovered 6 | . . . . . . . . . . . . . . . 2 . . . . . . 1 . . . . . 2 . . . . 1 . . . . . . . Used 2 | . . . . . . . . . . . . . . . . . . . . . . . . . . . . 2 . . . . . . . . . . . . Hacking Detections 85 | . 4 . . . 10 1 3 3 14 . . . . . 12 . . . . 2 . 3 8 . . 7 1 4 . . . . 2 1 3 1 . 1 2 3 Full Trace Events 15 | . . . . . 1 . . 1 3 . . . . . 2 . . . . 2 . 1 1 . . . 1 1 . . . . . . 1 1 . . . . Feedback Events . | . . . . . . . . . . . . . . . . . . . . . . . . . . . . . . . . . . . . . . . . . Feedback Blocked . | . . . . . . . . . . . . . . . . . . . . . . . . . . . . . . . . . . . . . . . . . Robot Schematics Acquired 9 | . . . . . . . . . . . . 3 . . . . . 6 . . . . . . . . . . . . . . . . . . . . . . Robots Built . | . . . . . . . . . . . . . . . . . . . . . . . . . . . . . . . . . . . . . . . . . Authchips . | . . . . . . . . . . . . . . . . . . . . . . . . . . . . . . . . . . . . . . . . . Time . | . . . . . . . . . . . . . . . . . . . . . . . . . . . . . . . . . . . . . . . . . Total Robot Build Rating . | . . . . . . . . . . . . . . . . . . . . . . . . . . . . . . . . . . . . . . . . . Part Schematics Acquired 30 | . . . . . . . . . 2 . . 15 . . 2 . . 10 . . . . . . . . . 1 . . . . . . . . . . . . Parts Built 8 | . . . . . . . . . 2 . . . . . 2 . . . . 2 . . . . . . . 1 . . . . . . 1 . . . . . Authchips . | . . . . . . . . . . . . . . . . . . . . . . . . . . . . . . . . . . . . . . . . . Time 306 | . . . . . . . . . 53 . . . . . 95 . . . . 58 . . . . . . . 58 . . . . . . 42 . . . . . Total Part Build Rating 49 | . . . . . . . . . 12 . . . . . 10 . . . . 14 . . . . . . . 7 . . . . . . 6 . . . . . Parts Repaired 13 | . . . . . 5 . . . 5 . . . . . 1 . . . . . . . . . . . . 1 . . . . . . 1 . . . . . Time 531 | . . . . . 148 . . . 183 . . . . . 38 . . . . . . . . . . . . 54 . . . . . . 108 . . . . . Parts Recycled . | . . . . . . . . . . . . . . . . . . . . . . . . . . . . . . . . . . . . . . . . . Recycled Matter . | . . . . . . . . . . . . . . . . . . . . . . . . . . . . . . . . . . . . . . . . . Retrieved Matter . | . . . . . . . . . . . . . . . . . . . . . . . . . . . . . . . . . . . . . . . . . Retrieved Components . | . . . . . . . . . . . . . . . . . . . . . . . . . . . . . . . . . . . . . . . . . Parts Scanalyzed 1 | . . . . . 1 . . . . . . . . . . . . . . . . . . . . . . . . . . . . . . . . . . . Part Schematics Acquired . | . . . . . . . . . . . . . . . . . . . . . . . . . . . . . . . . . . . . . . . . . Parts Damaged . | . . . . . . . . . . . . . . . . . . . . . . . . . . . . . . . . . . . . . . . . . Bothacking | -11 -10 -10 -10 -9 -8 -8 -8 -8 -7 -7 -7 -7 -7 -6 -6 -6 -6 -6 -5 -5 -5 -5 -5 -5 -5 -5 -5 -4 -4 -4 -4 -3 -3 -3 -3 -3 -3 -2 -1 -1 ------------ Run | Yrd Mat Min Exi Min Mat Gar Mat Gar Fac Low Low Zio Dee Pro Fac Low Low Dat Pro Fac Was Fac Ext Cet Arc Hub Gar Fac Upp Upp War Pro Res Gar Res Gar Qua Res Acc Com Used RIF Installer . | . . . . . . . . . . . . . . . . . . . . . . . . . . . . . . . . . . . . . . . . . Robots Hacked 3 | . . . . . . . . . . . . . . . . . . . . . . . . . . . . . . . . . . . . . . 1 . 2 Non-combat . | . . . . . . . . . . . . . . . . . . . . . . . . . . . . . . . . . . . . . . . . . Combat 2 | . . . . . . . . . . . . . . . . . . . . . . . . . . . . . . . . . . . . . . 1 . 1 Robot Hacks Applied . | . . . . . . . . . . . . . . . . . . . . . . . . . . . . . . . . . . . . . . . . . Manual 1 | . . . . . . . . . . . . . . . . . . . . . . . . . . . . . . . . . . . . . . . . 1 Relay Couplers Released 100 | . . . . . . 25 . 21 . . . . . . . . . . . . . . . . . . 28 . . . . . . 15 . 9 . 2 . . Machine Destruction 97 | . . . . . . 25 . 18 . . . . . . . . . . . . . . . . . . 28 . . . . . . 15 . 9 . 2 . . Programmers 3 | . . . . . . . . 3 . . . . . . . . . . . . . . . . . . . . . . . . . . . . . . . . Fabnet Peak Effective % 3 | . . . . . . . . . . . . . . . . . . . . . . . . . . . . . . . . . . . . . . 3 1 1 Autooverrided 2 | . . . . . . . . . . . . . . . . . . . . . . . . . . . . . . . . . . . . . . 1 . 1 Robots Rewired 43 | . . . . . . 8 . 2 . . . . . . . 2 . . . . . . 13 . . . 5 . 2 . 5 2 . 2 . 2 . . . . Allies Hacked 1 | . . . . . . . . . . . . . . . . . . . . . . . . . . . . . . . . . . . 1 . . . . . Hacks Repelled . | . . . . . . . . . . . . . . . . . . . . . . . . . . . . . . . . . . . . . . . . . Allies | -11 -10 -10 -10 -9 -8 -8 -8 -8 -7 -7 -7 -7 -7 -6 -6 -6 -6 -6 -5 -5 -5 -5 -5 -5 -5 -5 -5 -4 -4 -4 -4 -3 -3 -3 -3 -3 -3 -2 -1 -1 -------- Run | Yrd Mat Min Exi Min Mat Gar Mat Gar Fac Low Low Zio Dee Pro Fac Low Low Dat Pro Fac Was Fac Ext Cet Arc Hub Gar Fac Upp Upp War Pro Res Gar Res Gar Qua Res Acc Com Total Allies 80 | . . . . 2 3 8 . 2 1 . . 3 . . 3 2 . . . . . . 19 5 . 1 9 . 2 . 5 2 . 4 2 5 . 1 . 1 Largest Group 12 | . . . . 2 3 7 3 2 1 . . 3 3 . 3 2 2 2 . . . . 10 12 10 7 5 . 2 2 6 2 1 4 4 3 3 1 . 1 Highest-Rated Group 788 | . . . . 50 41 72 71 51 10 . . 76 76 . 93 51 51 51 . . . . 383 788 587 392 380 . 94 94 333 106 64 272 272 243 221 30 . 69 Highest-Rated Ally 159 | . . . . 31 31 31 31 31 10 . . 28 28 . 31 31 31 31 . . . . 159 159 159 96 119 . 47 47 68 64 64 95 95 95 95 30 . 69 Total Orders 77 | . . . . . 11 12 9 . 1 . . . . . . . 2 1 . . . . 2 . 4 4 3 . 3 4 3 . . 1 . 3 . 6 6 2 STAY 36 | . . . . . 4 6 5 . 1 . . . . . . . 1 1 . . . . 1 . 2 3 2 . 2 2 3 . . 1 . 2 . . . . FOLLOW 27 | . . . . . 7 6 4 . . . . . . . . . 1 . . . . . 1 . 2 1 1 . 1 2 . . . . . 1 . . . . EXPLORE 3 | . . . . . . . . . . . . . . . . . . . . . . . . . . . . . . . . . . . . . . 3 . . RETURN 11 | . . . . . . . . . . . . . . . . . . . . . . . . . . . . . . . . . . . . . . 3 6 2 Ally Attacks 523 | . . . . 1 16 40 22 4 . . . . 19 . 13 3 13 2 . . . . 43 45 10 38 38 . 5 5 26 4 11 31 31 28 . 7 38 30 Total Damage 13143 | . . . . . 169 397 355 146 . . . . 351 . 223 43 83 28 . . . . 1011 799 368 1457 1295 . 152 96 1372 56 539 662 805 1328 . 109 589 710 Kills 89 | . . . . . . 3 2 4 . . . . 6 . 2 1 1 . . . . . 7 6 1 8 15 . 1 . 6 1 2 3 5 8 . 1 5 1 Allies Corrupted 9 | . . . . . . . . . . . . . . . . . . . . . . . . . . 2 1 . . . 1 . . . 3 . 2 . . . Allies Melted . | . . . . . . . . . . . . . . . . . . . . . . . . . . . . . . . . . . . . . . . . . Intel | -11 -10 -10 -10 -9 -8 -8 -8 -8 -7 -7 -7 -7 -7 -6 -6 -6 -6 -6 -5 -5 -5 -5 -5 -5 -5 -5 -5 -4 -4 -4 -4 -3 -3 -3 -3 -3 -3 -2 -1 -1 ------- Run | Yrd Mat Min Exi Min Mat Gar Mat Gar Fac Low Low Zio Dee Pro Fac Low Low Dat Pro Fac Was Fac Ext Cet Arc Hub Gar Fac Upp Upp War Pro Res Gar Res Gar Qua Res Acc Com Robot Analysis Total 137 | . . . . . 1 . 1 . 1 . . . . . . . . 134 . . . . . . . . . . . . . . . . . . . . . . Derelict Logs Recovered 18 | . . . . 2 . . . . . 2 1 1 . 2 . 1 3 . 2 . . . . . . . . . 1 3 . . . . . . . . . . Drone Launches 18 | . . . . . . . . . . . . . . . . . . . . . . . . . . . . . . . . . . . . . . 3 9 6 Drone Recoveries 16 | . . . . . . . . . . . . . . . . . . . . . . . . . . . . . . . . . . . . . . 3 9 4 Exploration | -11 -10 -10 -10 -9 -8 -8 -8 -8 -7 -7 -7 -7 -7 -6 -6 -6 -6 -6 -5 -5 -5 -5 -5 -5 -5 -5 -5 -4 -4 -4 -4 -3 -3 -3 -3 -3 -3 -2 -1 -1 ------------- Run | Yrd Mat Min Exi Min Mat Gar Mat Gar Fac Low Low Zio Dee Pro Fac Low Low Dat Pro Fac Was Fac Ext Cet Arc Hub Gar Fac Upp Upp War Pro Res Gar Res Gar Qua Res Acc Com Turns Passed 51572 | 98 1590 408 370 755 1893 2330 874 1212 2434 1763 1207 1780 4097 1526 2173 2104 2103 892 1409 296 260 761 1172 361 3631 1704 1698 795 1342 995 1203 952 342 854 464 1193 408 512 754 857 Spaces Moved 24562 | 49 783 259 283 473 879 1228 561 727 1342 1099 752 907 1657 774 1045 1055 1082 116 726 100 99 247 477 135 319 778 695 334 820 731 776 327 220 504 251 616 193 323 346 474 Core 12 | 12 . . . . . . . . . . . . . . . . . . . . . . . . . . . . . . . . . . . . . . . . Treads 1531 | 37 257 4 . . 140 . . . 19 . . 331 743 . . . . . . . . . . . . . . . . . . . . . . . . . . . Legs 14477 | . . . . . . . . . . . . . 914 774 1045 1055 1082 116 726 100 99 247 477 135 319 778 695 334 820 731 776 327 220 504 251 616 193 323 346 474 Wheels 8542 | . 526 255 283 473 739 1228 561 727 1323 1099 752 576 . . . . . . . . . . . . . . . . . . . . . . . . . . . . Hover . | . . . . . . . . . . . . . . . . . . . . . . . . . . . . . . . . . . . . . . . . . Flight . | . . . . . . . . . . . . . . . . . . . . . . . . . . . . . . . . . . . . . . . . . Fastest Speed 50 | 50 135 130 130 130 123 120 120 123 116 145 145 145 158 189 180 180 180 180 180 183 183 183 183 183 183 176 176 120 120 120 110 110 110 116 116 116 110 118 126 118 Average Speed 154 | 133 162 134 130 140 143 153 123 134 140 145 145 186 181 189 187 180 180 200 182 183 183 183 183 183 183 179 176 120 120 120 125 121 113 116 116 116 118 139 130 137 Slowest Speed 570 | 160 175 320 130 175 240 225 195 150 570 145 145 243 260 189 189 180 180 300 210 183 183 183 183 183 183 183 176 120 120 120 172 170 116 116 120 116 180 184 182 185 Overloaded Moves . | . . . . . . . . . . . . . . . . . . . . . . . . . . . . . . . . . . . . . . . . . Propulsion Burnouts . | . . . . . . . . . . . . . . . . . . . . . . . . . . . . . . . . . . . . . . . . . Robots Hopped . | . . . . . . . . . . . . . . . . . . . . . . . . . . . . . . . . . . . . . . . . . Cave-ins Triggered . | . . . . . . . . . . . . . . . . . . . . . . . . . . . . . . . . . . . . . . . . . Exploration Rate (%) 60 | 5 51 45 68 77 61 93 38 94 31 90 93 80 89 86 31 99 96 79 90 3 86 15 79 73 96 64 79 14 86 89 91 60 8 76 11 77 33 20 13 25 Regions Visited 40 Branch Regions 22 Pre-discovered Areas 33 | . . . 1 1 . . . . . 2 1 1 . 1 . . . 24 . . . . . . . . . . . 1 1 . . . . . . . . . Known Exits Taken 18 | . 1 . . . 1 . 1 . 1 . . . . . 1 1 1 1 1 . . . . . . 1 . 1 1 1 . 1 1 . 1 . 1 1 . . Unknown Exits Taken 15 | 1 . 1 1 1 . . . . . 1 1 1 1 1 . . . . . . . 1 1 1 1 . . . . . 1 . . . . . . . 1 . Scrap Searched 40 | . . 2 . 1 . . . . . 1 4 3 . 1 . 4 15 . 2 . . . . . . . . . 2 5 . . . . . . . . . . Spaces Dug 212 | . . . . . 2 . . 2 6 6 2 . 1 3 31 14 25 . . . . 3 1 . . 1 16 4 6 3 8 . 8 2 7 4 12 11 32 2 Terrain Destroyed 1659 | . . 20 . 54 7 9 . 78 26 18 7 . 37 16 127 32 49 1 5 . 9 11 18 3 7 188 55 60 24 22 38 17 32 222 40 104 199 12 100 12 Melee 20 | . . . . . 2 . . 2 6 . 2 . . . . . . . . . . . . . . . . . . . 6 . 1 . . . . 1 . . Projectile 469 | . . . . . . . . . 15 . . . 1 16 31 32 49 . 3 . 9 11 18 3 7 20 13 15 24 22 2 17 16 19 14 22 21 11 47 11 AOE 1169 | . . 20 . 54 5 9 . 76 5 18 5 . 36 . 96 . . 1 2 . . . . . . 168 42 45 . . 30 . 15 203 26 82 178 . 53 . Terrain Rammed . | . . . . . . . . . . . . . . . . . . . . . . . . . . . . . . . . . . . . . . . . . Walls Destroyed . | . . . . . . . . . . . . . . . . . . . . . . . . . . . . . . . . . . . . . . . . . Machines Disabled . | . . . . . . . . . . . . . . . . . . . . . . . . . . . . . . . . . . . . . . . . . Actions | -11 -10 -10 -10 -9 -8 -8 -8 -8 -7 -7 -7 -7 -7 -6 -6 -6 -6 -6 -5 -5 -5 -5 -5 -5 -5 -5 -5 -4 -4 -4 -4 -3 -3 -3 -3 -3 -3 -2 -1 -1 --------- Run | Yrd Mat Min Exi Min Mat Gar Mat Gar Fac Low Low Zio Dee Pro Fac Low Low Dat Pro Fac Was Fac Ext Cet Arc Hub Gar Fac Upp Upp War Pro Res Gar Res Gar Qua Res Acc Com Total 35556 | 66 978 288 285 532 1374 1526 672 851 1697 1255 820 971 2647 813 1186 1208 1177 780 808 221 146 491 708 227 3321 988 1009 682 1115 791 950 791 270 666 397 1000 282 374 567 626 Wait 7542 | 1 58 2 . 23 314 76 34 47 156 133 24 11 742 12 61 96 52 627 19 71 18 195 80 75 2927 38 80 301 211 14 35 378 13 72 105 306 4 12 93 26 Move 24521 | 48 782 258 282 472 878 1226 560 726 1341 1098 751 906 1656 773 1044 1054 1081 115 725 100 98 246 476 134 318 777 694 333 819 730 775 326 220 503 250 613 192 322 345 474 Hop . | . . . . . . . . . . . . . . . . . . . . . . . . . . . . . . . . . . . . . . . . . Pick Up 312 | 4 24 4 2 7 29 18 13 3 19 2 . 5 31 2 13 . 3 3 4 17 3 5 3 2 3 12 6 7 4 4 13 2 3 3 6 3 7 4 16 3 Fast Attach 134 | 6 1 . . . 10 2 3 2 21 . 1 1 18 2 3 . . 2 3 . 1 . 1 . 9 10 5 1 . . 3 . 1 3 2 1 3 5 5 9 Attach 144 | . 1 . . 1 3 4 8 2 9 1 . 6 15 . 2 . . 3 8 5 2 . . . 3 2 10 4 3 1 5 1 1 1 2 2 4 5 12 18 Detach 229 | . . . . . 3 . 3 1 4 1 . 1 21 1 4 7 2 14 8 8 3 4 2 . 11 17 21 7 6 2 10 6 1 6 7 6 4 11 13 14 Swap 321 | . 11 9 . 5 44 24 5 6 26 14 22 3 12 7 3 11 9 2 1 2 4 2 . 2 1 9 9 4 5 12 7 3 4 4 2 9 7 . 13 8 Drop 324 | . 9 1 1 6 30 18 12 1 26 1 1 10 46 4 12 . 3 3 7 16 2 4 3 2 8 16 8 2 4 3 13 2 2 4 5 4 4 6 15 10 Fire 1443 | 7 89 14 . 18 60 63 34 51 89 5 17 . 106 12 40 27 27 10 33 2 15 35 34 12 41 69 67 23 32 25 27 42 23 52 18 49 53 7 52 63 Melee 110 | . . . . . 2 27 . 3 6 . 4 1 . . . . . 1 . . . . . . . 34 9 . . . 10 . 1 4 . . 4 2 2 . Ram 1 | . 1 . . . . . . . . . . . . . . . . . . . . . . . . . . . . . . . . . . . . . . . Kick 13 | . . . . . . . . . . . . . . . 4 . . . . . . . 3 . . 4 . . . . . . 1 . . . . . 1 . Crush 3 | . 2 . . . 1 . . . . . . . . . . . . . . . . . . . . . . . . . . . . . . . . . . . Escape Stasis 37 | . . . . . . 24 . . . . . . . . . . . . . . . . . . . . 9 . . . . . . . . 3 . . . 1 Rewire 337 | . . . . . . 44 . 9 . . . . . . . 13 . . . . . . 106 . . . 33 . 31 . 52 31 . 14 . 4 . . . . Trap . | . . . . . . . . . . . . . . . . . . . . . . . . . . . . . . . . . . . . . . . . . Miscellaneous 85 | . . . . . . . . . . . . 27 . . . . . . . . . . . . . . 58 . . . . . . . . . . . . . Route ------- -11/Scrapyard -10/Materials (discovered 3 exits: [*Mat x2] / *Min) -10/Mines -10/Exiles -9/Mines -8/Materials (discovered 4 exits: *Fac / [*Sto x2] / Gar) -8/Garrison (discovered 3 exits: *Mat x3) -8/Materials (discovered 2 exits: *Fac / Gar) -8/Garrison (discovered 3 exits: *Fac x3) -7/Factory (discovered 3 exits: *Fac / *Low x2) -7/Lower Caves -7/Lower Caves (discovered 2 exits: *Fac / [*Zio]) -7/Zion (discovered 2 exits: [*Dee] / [Pro]) -7/Deep Caves -6/Proximity Caves -6/Factory (discovered 4 exits: *Fac x2 / *Low x2) -6/Lower Caves -6/Lower Caves (discovered 2 exits: *Fac / *Dat) -6/Data Miner -5/Proximity Caves -5/Factory (discovered 2 exits: Fac x2) -5/Waste -5/Factory (discovered 2 exits: [*Upp] / *Ext) -5/Extension (discovered 2 exits: *Fac / *Cet) -5/Cetus -5/Archives (discovered 3 exits: *Fac / *Hub x2) -5/Hub_04(d) (discovered 4 exits: *Fac x3 / Gar) -5/Garrison (discovered 3 exits: *Fac x3) -4/Factory (discovered 3 exits: *Upp x2 / Arm) -4/Upper Caves -4/Upper Caves (discovered 2 exits: *Res / *War) -4/Warlord -3/Proximity Caves -3/Research (discovered 4 exits: Res / Qua x2 / Gar) -3/Garrison (discovered 3 exits: *Res x3) -3/Research (discovered 3 exits: Qua x2 / Gar) -3/Garrison (discovered 3 exits: *Qua x3) -3/Quarantine -2/Research -1/Access -1/Command Free Derelict Territories History --------- Turn | Location | Event 6 | -11/Scrapyard | Discovered new exit (range 16) 99 | -11/Scrapyard | Entered Materials 221 | -10/Materials | Identified exit to Mines 309 | -10/Materials | Build established: Mutant 311 | -10/Materials | Discovered new exit (range 16) 557 | -10/Materials | Discovered new exit (range 15) 1689 | -10/Materials | Entered Mines 1707 | -10/Mines | Met a Derelict bent on vengeance 1830 | -10/Mines | Assembled infested the area 2024 | -10/Mines | Deemed a non-threat by the Exiles lab entrance 2090 | -10/Mines | Discovered new exit (range 5) 2097 | -10/Mines | Entered Exiles 2130 | -10/Exiles | Met 8R-AWN 2152 | -10/Exiles | Met EX-HEX 2201 | -10/Exiles | Met EX-DEC 2208 | -10/Exiles | Learned location of Zion (-7) 2229 | -10/Exiles | Met EX-BIN 2247 | -10/Exiles | Aligned with FarCom system 2248 | -10/Exiles | Given EX-Vault access code 2279 | -10/Exiles | Opened EX-Vault 2289 | -10/Exiles | Found Longsword +1 2314 | -10/Exiles | Warned to stay clear of 0b10 Research branches 2456 | -10/Exiles | Discovered new exit (range 10) 2467 | -10/Exiles | Left Exiles lab with Longsword +1 2467 | -10/Exiles | Entered Mines 2564 | -9/Mines | Learned location of Storage (-8) 2636 | -9/Mines | Found a hidden stash of uninstalled traps 2739 | -9/Mines | Learned Materials trap positions 3047 | -9/Mines | Found a damaged Exp. Sensor Array with a note attached 3050 | -9/Mines | Found Prototype Device 3168 | -9/Mines | Discovered new exit (range 7) 3177 | -9/Mines | Received a Rocket Launcher from a helpful Derelict 3222 | -9/Mines | Entered Materials 3222 | -8/Materials | Accompanied by 1 ally 3222 | -8/Materials | Evolved 4 slots: Propulsion x1, Utility x2, Weapon x1 3223 | -8/Materials | Loaded intel: 13 trap records 3227 | -8/Materials | Led the pair of lost Derelicts to an unsafe place 3305 | -8/Materials | Discovered new exit (range 11) 3567 | -8/Materials | Repaired Shotgun 3594 | -8/Materials | Repaired Com. Wheel 3633 | -8/Materials | Repaired Imp. Terrain Scanner 3673 | -8/Materials | Repaired Com. Wheel 3701 | -8/Materials | Repaired Wheel 3942 | -8/Materials | Build established: Skirmisher 4232 | -8/Materials | Identified Exp. Sensor Array 4325 | -8/Materials | Discovered new exit (range 16) 4779 | -8/Materials | Discovered new exit (range 11) 4779 | -8/Materials | Central database locked down 5011 | -8/Materials | Garrison activated, responded to threat 5048 | -8/Materials | Identified exit to Garrison 5115 | -8/Materials | Entered Garrison 5115 | -8/Garrison | Accompanied by 3 allies 5170 | -8/Garrison | Triggered checkpoint 5211 | -8/Garrison | Spotted B-75 Beast 5234 | -8/Garrison | Destroyed B-75 Beast 5493 | -8/Garrison | Garrison Relay disabled 5578 | -8/Garrison | Triggered checkpoint 5954 | -8/Garrison | Triggered checkpoint 6022 | -8/Garrison | Triggered checkpoint 6025 | -8/Garrison | Garrison Relay disabled 6439 | -8/Garrison | Garrison Relay disabled 6508 | -8/Garrison | Triggered checkpoint 6612 | -8/Garrison | Triggered checkpoint 6643 | -8/Garrison | Garrison Relay disabled 6697 | -8/Garrison | Discovered new exit (range 13) 6810 | -8/Garrison | Build established: Commander-Skirmisher 6820 | -8/Garrison | Garrison Relay disabled 6850 | -8/Garrison | Discovered new exit (range 11) 6935 | -8/Garrison | Lost 3 allies 7102 | -8/Garrison | Triggered checkpoint 7161 | -8/Garrison | Discovered new exit (range 9) 7171 | -8/Garrison | Build established: Skirmisher 7209 | -8/Garrison | Garrison Relay disabled 7324 | -8/Garrison | Attempted to access garrison exit controls, blocked by remote lockdown 7445 | -8/Garrison | Entered Materials 7445 | -8/Materials | Accompanied by 3 allies 7807 | -8/Materials | Lost 4 parts (1p2n1u) 8032 | -8/Materials | Identified exit to Garrison 8053 | -8/Materials | Discovered new exit (range 15) 8319 | -8/Materials | Entered Garrison 8372 | -8/Garrison | Phase Generator disabled 8429 | -8/Garrison | Spotted B-75 Beast 8494 | -8/Garrison | Triggered checkpoint 8530 | -8/Garrison | Garrison Relay disabled 8562 | -8/Garrison | Triggered checkpoint 8670 | -8/Garrison | Discovered new exit (range 55) 8670 | -8/Garrison | Discovered new exit (range 49) 8670 | -8/Garrison | Discovered new exit (range 23) 8733 | -8/Garrison | Garrison Relay disabled 8814 | -8/Garrison | Build established: Scavenger-Skirmisher 8853 | -8/Garrison | Garrison Relay disabled 8888 | -8/Garrison | Triggered checkpoint 8907 | -8/Garrison | Garrison Relay disabled 8950 | -8/Garrison | Triggered checkpoint 9095 | -8/Garrison | Garrison Relay disabled 9531 | -8/Garrison | Entered Factory 9531 | -7/Factory | Evolved 2 slots: Power x1, Utility x1 9931 | -7/Factory | First assault squad dispatched 10596 | -7/Factory | Identified exit to Lower Caves 10617 | -7/Factory | Build established: Hacker-Skirmisher 11259 | -7/Factory | Repaired Flak Gun 11283 | -7/Factory | Repaired Flak Gun 11377 | -7/Factory | Discovered new exit (range 14) 11447 | -7/Factory | Repaired Imp. Deuterium Engine? 11588 | -7/Factory | Fabricated Imp. Plasma Cutter (x2) 11777 | -7/Factory | Repaired Flak Gun 11830 | -7/Factory | Repaired Hvy. Ion Engine 11965 | -7/Factory | Entered Lower Caves 11971 | -7/Lower Caves | Met a Warlord Commander 11972 | -7/Lower Caves | Learned location of Warlord (-4) 11975 | -7/Lower Caves | Found Encrypted Comm Array 12098 | -7/Lower Caves | Learned location of Extension (-5) 12318 | -7/Lower Caves | Build established: Skirmisher 12390 | -7/Lower Caves | Learned Factory stockpile data 12420 | -7/Lower Caves | Discovered new exit (range 10) 13728 | -7/Lower Caves | Entered another Lower Caves area 13734 | -7/Lower Caves | Attracted the attention of an 0b10 checkpoint 13855 | -7/Lower Caves | Discovered new exit (range 9) 14025 | -7/Lower Caves | Encountered a Warlord checkpoint 14861 | -7/Lower Caves | Discovered new exit (range 13) 14935 | -7/Lower Caves | Entered Zion 14996 | -7/Zion | Discovered new exit (range 15) 15092 | -7/Zion | Given the Hacking Drone Bay 15136 | -7/Zion | Gained Derelict followers 15256 | -7/Zion | Discovered new exit (range 15) 15586 | -7/Zion | Build established: Gunner 16244 | -7/Zion | Saw the warning signs outside the Deep Caves entrance 16715 | -7/Zion | Entered Deep Caves 16715 | -7/Deep Caves | Accompanied by 3 allies 16950 | -7/Deep Caves | Attacked by Z-Imprinter 16984 | -7/Deep Caves | Core integrity fell below 50% 16987 | -7/Deep Caves | Allies destroyed Z-Imprinter 17014 | -7/Deep Caves | Lost 5 parts (2p3w) 17099 | -7/Deep Caves | Z-Facility disabled 17125 | -7/Deep Caves | Found Prototype Protection 17125 | -7/Deep Caves | Identified Zio. Weapon Casing 17149 | -7/Deep Caves | Found Zio. Weapon Casing 17274 | -7/Deep Caves | Lost 3 allies 17275 | -7/Deep Caves | Build established: Scavenger-Mutant 17331 | -7/Deep Caves | Found Prototype Protection 17331 | -7/Deep Caves | Identified Zio. Heavy Carapace 17894 | -7/Deep Caves | Discovered new exit (range 11) 18019 | -7/Deep Caves | Spotted as-19395 18054 | -7/Deep Caves | Destroyed as-19395 18077 | -7/Deep Caves | Found GOLEM Unit 18084 | -7/Deep Caves | Lost 3 parts (1p1n1u) 18713 | -7/Deep Caves | Found Zio. Weapon Casing 18737 | -7/Deep Caves | Build established: Golem 18919 | -7/Deep Caves | Spotted as-11779 18957 | -7/Deep Caves | Destroyed as-11779 19513 | -7/Deep Caves | Exposed GOLEM chamber 19514 | -7/Deep Caves | Triggered Deep Caves wall 19531 | -7/Deep Caves | Spotted AS-48814 19532 | -7/Deep Caves | Destroyed AS-48814 19543 | -7/Deep Caves | Spotted AS-00206 19547 | -7/Deep Caves | Destroyed AS-00206 19608 | -7/Deep Caves | Destroyed 41 combat bots 19674 | -7/Deep Caves | Destroyed 10 combat bots 19682 | -7/Deep Caves | Found Trap Reconfigurator 20049 | -7/Deep Caves | Found Zio. Weapon Casing 20479 | -7/Deep Caves | Found GOLEM Unit 20484 | -7/Deep Caves | Found GOLEM Unit 20585 | -7/Deep Caves | Found GOLEM Unit 20812 | -7/Deep Caves | Entered Proximity Caves 20815 | -6/Proximity Caves | Spotter reported a threat 20994 | -6/Proximity Caves | Learned Factory emergency access door positions 21458 | -6/Proximity Caves | Destroyed B-75 Beast 22085 | -6/Proximity Caves | Discovered new exit (range 10) 22338 | -6/Proximity Caves | Entered Factory 22338 | -6/Factory | Evolved 2 slots: Utility x2 22673 | -6/Factory | Identified exit to Lower Caves 22798 | -6/Factory | Repaired Missile Launcher 22821 | -6/Factory | Discovered new exit (range 22) 22847 | -6/Factory | Discovered new exit (range 22) 23026 | -6/Factory | Fabricated Weapon Mount? 23713 | -6/Factory | Garrison activated, responded to threat 23819 | -6/Factory | Allied Derelicts emerged from ambush trap array 24348 | -6/Factory | Found Launcher Loader 24511 | -6/Factory | Entered Lower Caves 24511 | -6/Lower Caves | Accompanied by 1 ally 24732 | -6/Lower Caves | Ambushed by wild Derelicts 25062 | -6/Lower Caves | Discovered new exit (range 16) 25926 | -6/Lower Caves | Learned Factory terminal intel 26610 | -6/Lower Caves | Identified exit to Lower Caves 26615 | -6/Lower Caves | Entered another Lower Caves area 26615 | -6/Lower Caves | Accompanied by 2 allies 26678 | -6/Lower Caves | Discovered new exit (range 10) 27278 | -6/Lower Caves | Learned Factory machine intel 27730 | -6/Lower Caves | Discovered new exit (range 10) 27755 | -6/Lower Caves | Learned Factory garrison access intel 27771 | -6/Lower Caves | Learned 4 Factory zone layouts 27894 | -6/Lower Caves | Encountered a Warlord checkpoint 28089 | -6/Lower Caves | Spotted B-75 Beast 28279 | -6/Lower Caves | Destroyed B-75 Beast 28709 | -6/Lower Caves | Identified exit to Data Miner 28718 | -6/Lower Caves | Entered Data Miner 28718 | -6/Data Miner | Accompanied by 2 allies 28718 | -6/Data Miner | Discovered new exit (range 7) 28742 | -6/Data Miner | Met Data Miner 28803 | -6/Data Miner | Learned location of Section 7 (-3) 28803 | -6/Data Miner | Acquired the access code to Warlord's prototype stash 29075 | -6/Data Miner | Received God Mode back door access code from Data Miner 29112 | -6/Data Miner | Interfaced with the Data Conduit 29608 | -6/Data Miner | Identified exit to Proximity Caves 29610 | -6/Data Miner | Entered Proximity Caves 29834 | -5/Proximity Caves | Spotter reported a threat 29978 | -5/Proximity Caves | Spotter reported a threat 30228 | -5/Proximity Caves | Learned Factory non-interactive machine intel 30250 | -5/Proximity Caves | Spotted B-75 Beast 30314 | -5/Proximity Caves | Destroyed B-75 Beast 30349 | -5/Proximity Caves | System corruption reached 10% 30558 | -5/Proximity Caves | Learned Factory terminal intel 30995 | -5/Proximity Caves | Discovered new exit (range 3) 30999 | -5/Proximity Caves | Identified exit to Factory 31019 | -5/Proximity Caves | Entered Factory 31019 | -5/Factory | Evolved 2 slots: Utility x2 31020 | -5/Factory | Identified exit to Factory 31021 | -5/Factory | Loaded intel: 250 machine locations 31022 | -5/Factory | Loaded intel: 196 non-interactive machine locations 31023 | -5/Factory | Loaded intel: 28 terminal locations 31024 | -5/Factory | Loaded intel: 4 garrison access locations 31293 | -5/Factory | Fabricated Adv. Particle Charger (x2) 31315 | -5/Factory | Sucked down chute 31315 | -5/Factory | Entered Waste 31330 | -5/Waste | EMP discharged 31332 | -5/Waste | Spotted C-40 Crusher 31344 | -5/Waste | Destroyed C-40 Crusher 31361 | -5/Waste | Spotted C-40 Crusher 31383 | -5/Waste | Destroyed C-40 Crusher 31388 | -5/Waste | Found Damper Plating 31408 | -5/Waste | Spotted C-40 Crusher 31412 | -5/Waste | Spotted C-40 Crusher 31424 | -5/Waste | Destroyed C-40 Crusher 31430 | -5/Waste | EMP discharged 31430 | -5/Waste | System corruption reached 10% 31442 | -5/Waste | Destroyed C-40 Crusher 31459 | -5/Waste | Spotted C-40 Crusher 31468 | -5/Waste | Destroyed C-40 Crusher 31530 | -5/Waste | EMP discharged 31557 | -5/Waste | Discovered new exit (range 10) 31575 | -5/Waste | Entered Factory 31576 | -5/Factory | Loaded intel: 202 machine locations 31577 | -5/Factory | Loaded intel: 28 terminal locations 31855 | -5/Factory | Discovered new exit (range 21) 32119 | -5/Factory | Discovered new exit (range 21) 32175 | -5/Factory | First assault squad dispatched 32336 | -5/Factory | Entered Extension 32337 | -5/Extension | Loaded intel: 28 machine locations 32737 | -5/Extension | Spotted B-75 Beast 32756 | -5/Extension | Destroyed B-75 Beast 32766 | -5/Extension | Rescued a captive Derelict 32767 | -5/Extension | Rescued a captive Derelict 32803 | -5/Extension | Spotted B-75 Beast 32852 | -5/Extension | Destroyed B-75 Beast 32952 | -5/Extension | Build established: Commander-Golem 33009 | -5/Extension | Rescued A7 33053 | -5/Extension | Rescued a captive Derelict 33054 | -5/Extension | Rescued a captive Derelict 33140 | -5/Extension | Lost 3 allies 33484 | -5/Extension | Discovered exit to Factory (range 10) 33486 | -5/Extension | Discovered new exit (range 6) 33508 | -5/Extension | Entered Cetus 33508 | -5/Cetus | Accompanied by 8 allies (A7) 33509 | -5/Cetus | Loaded intel: 24 machine locations 33513 | -5/Cetus | Acquired a Cetus Manufacturing Module code from A7 33527 | -5/Cetus | Spotted Cetus Guard 33529 | -5/Cetus | Spotted Cetus Guard 33531 | -5/Cetus | Spotted Cetus Guard 33535 | -5/Cetus | Spotted Cetus Guard 33537 | -5/Cetus | Allies destroyed Cetus Guard 33541 | -5/Cetus | Allies destroyed Cetus Guard 33547 | -5/Cetus | Destroyed Cetus Guard 33552 | -5/Cetus | Destroyed Cetus Guard 33628 | -5/Cetus | Started Cetus Manufacturing Module 33646 | -5/Cetus | Escorted A7 to Cetus Mainframe 33653 | -5/Cetus | Manufactured an Enhanced Grunt 33678 | -5/Cetus | Manufactured an Enhanced Grunt 33703 | -5/Cetus | Manufactured an Enhanced Grunt 33728 | -5/Cetus | Manufactured an Enhanced Grunt 33753 | -5/Cetus | Manufactured an Enhanced Grunt 33795 | -5/Cetus | Discovered new exit (range 22) 33799 | -5/Cetus | Cetus Manufacturing Module disabled 33869 | -5/Cetus | Entered Archives 33869 | -5/Archives | Accompanied by 10 allies (A7) 33870 | -5/Archives | Loaded intel: 8 machine locations 33874 | -5/Archives | Received a hacking code to weaken MAIN.C 33972 | -5/Archives | Discovered new exit (range 21) 33983 | -5/Archives | Discovered exit to Factory (range 22) 33983 | -5/Archives | Discovered new exit (range 18) 37500 | -5/Archives | Entered Hub_04(d) 37500 | -5/Hub_04(d) | Accompanied by 7 allies 37501 | -5/Hub_04(d) | Loaded intel: 102 machine locations 37823 | -5/Hub_04(d) | Discovered exit to Factory (range 3) 37950 | -5/Hub_04(d) | Discovered exit to Factory (range 20) 38036 | -5/Hub_04(d) | Identified exit to Garrison 38213 | -5/Hub_04(d) | Build established: Golem 38218 | -5/Hub_04(d) | Network Hub disabled 38225 | -5/Hub_04(d) | Network Hub disabled 38257 | -5/Hub_04(d) | Spotted Lightning 38259 | -5/Hub_04(d) | Spotted Lightning 38259 | -5/Hub_04(d) | Spotted Lightning 38279 | -5/Hub_04(d) | Destroyed Lightning 38289 | -5/Hub_04(d) | Destroyed Lightning 38304 | -5/Hub_04(d) | Destroyed Lightning 38319 | -5/Hub_04(d) | Found Prototype Energy Cannon 38319 | -5/Hub_04(d) | Identified EMDS 38323 | -5/Hub_04(d) | Found Exp. Targeting Computer 38338 | -5/Hub_04(d) | Found Exp. Phase Shifter 38366 | -5/Hub_04(d) | Intercept squad dispatched 38370 | -5/Hub_04(d) | Spotted Tracker 38383 | -5/Hub_04(d) | Spotted Combat Programmer 38389 | -5/Hub_04(d) | Destroyed Tracker 38397 | -5/Hub_04(d) | Destroyed Combat Programmer 38409 | -5/Hub_04(d) | Found Prototype Device 38409 | -5/Hub_04(d) | Identified Exp. Focal Shield 38429 | -5/Hub_04(d) | Found Exp. Targeting Computer 38651 | -5/Hub_04(d) | Spotted Lightning 38651 | -5/Hub_04(d) | Spotted Lightning 38651 | -5/Hub_04(d) | Spotted Lightning 38675 | -5/Hub_04(d) | Destroyed Lightning 38702 | -5/Hub_04(d) | Destroyed Lightning 38716 | -5/Hub_04(d) | Destroyed Lightning 38720 | -5/Hub_04(d) | Found Prototype Device 38720 | -5/Hub_04(d) | Identified Exp. EM Disruption Field 38728 | -5/Hub_04(d) | Found Exp. EM Disruption Field 38731 | -5/Hub_04(d) | Found Exp. Phase Shifter 38838 | -5/Hub_04(d) | Network Hub disabled 38905 | -5/Hub_04(d) | Discovered exit to Factory (range 13) 39204 | -5/Hub_04(d) | Entered Garrison 39205 | -5/Garrison | Loaded intel: 40 machine locations 39224 | -5/Garrison | Triggered checkpoint 39258 | -5/Garrison | Destroyed 7 combat bots 39303 | -5/Garrison | Garrison Relay disabled 39321 | -5/Garrison | Discovered exit to Factory (range 53) 39321 | -5/Garrison | Discovered exit to Factory (range 88) 39321 | -5/Garrison | Discovered exit to Factory (range 56) 39363 | -5/Garrison | Rescued a captive Derelict 39373 | -5/Garrison | Rescued a captive Derelict 39573 | -5/Garrison | Lost 5 allies 39577 | -5/Garrison | Spotted B-75 Beast 39585 | -5/Garrison | Destroyed B-75 Beast 39642 | -5/Garrison | Triggered checkpoint 39708 | -5/Garrison | Triggered checkpoint 39822 | -5/Garrison | Triggered checkpoint 39860 | -5/Garrison | Garrison Relay disabled 39887 | -5/Garrison | Spotted Striker 39887 | -5/Garrison | Spotted Striker 39903 | -5/Garrison | Destroyed Striker 39915 | -5/Garrison | Destroyed Striker 39956 | -5/Garrison | Rewired Executioner 39963 | -5/Garrison | Rewired Executioner 40162 | -5/Garrison | Phase Generator disabled 40191 | -5/Garrison | Found embedded Infiltrators 40300 | -5/Garrison | Garrison Relay disabled 40371 | -5/Garrison | Garrison Relay disabled 40372 | -5/Garrison | Triggered checkpoint 40460 | -5/Garrison | Triggered checkpoint 40491 | -5/Garrison | Spotted B-75 Beast 40495 | -5/Garrison | Spotted B-75 Beast 40495 | -5/Garrison | Allies destroyed B-75 Beast 40518 | -5/Garrison | Destroyed B-75 Beast 40622 | -5/Garrison | Triggered checkpoint 40692 | -5/Garrison | Garrison Relay disabled 40737 | -5/Garrison | Found Corrupted Prototype Processor 40737 | -5/Garrison | Identified Exp. Core Analyzer 40763 | -5/Garrison | Destroyed Executioner 40808 | -5/Garrison | Garrison Relay disabled 40902 | -5/Garrison | Entered Factory 40902 | -4/Factory | Evolved 2 slots: Propulsion x2 40903 | -4/Factory | Loaded intel: 258 machine locations 41036 | -4/Factory | Found Exp. Signal Interpreter 41129 | -4/Factory | Identified exit to Upper Caves 41129 | -4/Factory | Identified exit to Armory 41227 | -4/Factory | Build established: Scavenger-Golem 41471 | -4/Factory | Fabricated Heavy Servo Lattice? 41477 | -4/Factory | Repaired Exp. Sensor Array 41690 | -4/Factory | First assault squad dispatched 41697 | -4/Factory | Entered Upper Caves 41720 | -4/Upper Caves | Encountered a Warlord checkpoint 41857 | -4/Upper Caves | Attracted the attention of an 0b10 outpost 42176 | -4/Upper Caves | Learned Research security intel 42916 | -4/Upper Caves | Discovered new exit (range 8) 42923 | -4/Upper Caves | Identified exit to Upper Caves 43039 | -4/Upper Caves | Entered another Upper Caves area 43039 | -4/Upper Caves | Accompanied by 2 allies 43103 | -4/Upper Caves | Discovered new exit (range 9) 43129 | -4/Upper Caves | Identified exit to Research 43301 | -4/Upper Caves | Learned location of 1 exit from Proximity Caves 43683 | -4/Upper Caves | Spotted B-86 Titan 43686 | -4/Upper Caves | Destroyed B-86 Titan 43762 | -4/Upper Caves | Learned Research stockpile data 43808 | -4/Upper Caves | Attracted the attention of an 0b10 base 43898 | -4/Upper Caves | Learned Research security intel 43898 | -4/Upper Caves | Learned Extension emergency access door positions 43898 | -4/Upper Caves | Learned Research trap positions 43898 | -4/Upper Caves | Learned 8 Research zone layouts 43898 | -4/Upper Caves | Identified exit to Warlord 43898 | -4/Upper Caves | Learned location of 1 exit from Upper Caves 44034 | -4/Upper Caves | Entered Warlord 44034 | -4/Warlord | Accompanied by 1 ally 44513 | -4/Warlord | Found Prototype Special Weapon 44513 | -4/Warlord | Identified RU-N14's Throwing Claymores v3 44523 | -4/Warlord | Found RU-N14's Throwing Claymores v3 44525 | -4/Warlord | Found RU-N14's Throwing Claymores v3 44527 | -4/Warlord | Found RU-N14's Throwing Claymores v3 44579 | -4/Warlord | Learned Research fabricator intel 44580 | -4/Warlord | Learned 4 Research zone layouts 44581 | -4/Warlord | Learned Quarantine trap positions 44581 | -4/Warlord | Learned Research emergency access door positions 44607 | -4/Warlord | Found RU-N14's Throwing Claymores v3 44609 | -4/Warlord | Found RU-N14's Throwing Claymores v3 44718 | -4/Warlord | Met Warlord 44733 | -4/Warlord | Opened Warlord's prototype stash 44738 | -4/Warlord | Found Vortex Chain Reactor 44743 | -4/Warlord | Warlord's base attacked by MAIN.C 44743 | -4/Warlord | Found Exp. Cloaking Device 44754 | -4/Warlord | Found Prototype Hackware 45054 | -4/Warlord | Spotted Striker 45054 | -4/Warlord | Spotted Striker 45060 | -4/Warlord | Destroyed Striker 45070 | -4/Warlord | Spotted Striker 45079 | -4/Warlord | Spotted Executioner 45093 | -4/Warlord | Warlord forces counterattacked 45135 | -4/Warlord | Lost 5 allies 45153 | -4/Warlord | Spotted Striker 45158 | -4/Warlord | P-80 Master assimilated allied ZW-S37(g) 45160 | -4/Warlord | Spotted Striker 45160 | -4/Warlord | P-80 Master assimilated allied IJ-73E(g) 45171 | -4/Warlord | Spotted Striker 45217 | -4/Warlord | Lost 12 allies 45226 | -4/Warlord | Discovered new exit (range 12) 45233 | -4/Warlord | Build established: Gunner 45237 | -4/Warlord | Entered Proximity Caves 45520 | -3/Proximity Caves | Attracted the attention of an 0b10 checkpoint 45564 | -3/Proximity Caves | Spotted B-86 Titan 45608 | -3/Proximity Caves | Destroyed B-86 Titan 45764 | -3/Proximity Caves | Attracted the attention of an 0b10 outpost 46189 | -3/Proximity Caves | Entered Research 46189 | -3/Research | Accompanied by 1 ally 46189 | -3/Research | Evolved 2 slots: Propulsion x1, Weapon x1 46190 | -3/Research | Identified exit to Research 46190 | -3/Research | Identified exit to Quarantine 46191 | -3/Research | Loaded intel: 64 trap records 46195 | -3/Research | Loaded intel: 105 machine locations 46196 | -3/Research | Loaded intel: 4 fabricator locations 46491 | -3/Research | Identified Ghost Barrier 46505 | -3/Research | Garrison activated, responded to threat 46531 | -3/Research | Identified exit to Garrison 46531 | -3/Research | Entered Garrison 46531 | -3/Garrison | Accompanied by 1 ally 46532 | -3/Garrison | Loaded intel: 33 machine locations 46611 | -3/Garrison | Discovered new exit (range 48) 46611 | -3/Garrison | Discovered new exit (range 55) 46611 | -3/Garrison | Discovered new exit (range 49) 46640 | -3/Garrison | Triggered checkpoint 46647 | -3/Garrison | Spotted B-86 Titan 46648 | -3/Garrison | Destroyed B-86 Titan 46648 | -3/Garrison | Triggered checkpoint 46648 | -3/Garrison | Triggered checkpoint 46692 | -3/Garrison | Destroyed 16 combat bots 46731 | -3/Garrison | Triggered checkpoint 46765 | -3/Garrison | Destroyed 9 combat bots 46773 | -3/Garrison | Garrison Relay disabled 46862 | -3/Garrison | Garrison Relay disabled 46885 | -3/Garrison | Build established: Hacker-Gunner 46935 | -3/Garrison | H-XX Assembler disabled 47052 | -3/Garrison | Phase Generator disabled 47191 | -3/Garrison | Garrison Relay disabled 47217 | -3/Garrison | Spotted B-86 Titan 47248 | -3/Garrison | Destroyed B-86 Titan 47269 | -3/Garrison | Found Unknown Device 47269 | -3/Garrison | Identified Adv. Force Booster 47376 | -3/Garrison | Found embedded Infiltrators 47385 | -3/Garrison | Entered Research 47385 | -3/Research | Accompanied by 4 allies 47387 | -3/Research | Loaded intel: 116 machine locations 47490 | -3/Research | Fabricated Combat Drone Bay? 47550 | -3/Research | Spotted B-86 Titan 47559 | -3/Research | Allies destroyed B-86 Titan 47593 | -3/Research | Lost 3 allies 47668 | -3/Research | First assault squad dispatched 47739 | -3/Research | Garrison activated, responded to threat 47741 | -3/Research | Repaired Enh. Biometal Leg 47809 | -3/Research | Identified exit to Garrison 47849 | -3/Research | Entered Garrison 47850 | -3/Garrison | Loaded intel: 38 machine locations 47902 | -3/Garrison | H-XX Assembler disabled 48074 | -3/Garrison | Discovered exit to Quarantine (range 42) 48074 | -3/Garrison | Discovered exit to Quarantine (range 53) 48074 | -3/Garrison | Discovered exit to Quarantine (range 39) 48116 | -3/Garrison | Triggered checkpoint 48128 | -3/Garrison | Garrison Relay disabled 48169 | -3/Garrison | Spotted B-86 Titan 48244 | -3/Garrison | Allies destroyed B-86 Titan 48244 | -3/Garrison | Triggered checkpoint 48302 | -3/Garrison | Destroyed 11 combat bots 48364 | -3/Garrison | Triggered checkpoint 48404 | -3/Garrison | Found embedded Infiltrators 48495 | -3/Garrison | Phase Generator disabled 48527 | -3/Garrison | Rescued a captive Derelict 48580 | -3/Garrison | Triggered checkpoint 48595 | -3/Garrison | Garrison Relay disabled 48749 | -3/Garrison | Attempted to access garrison exit controls, blocked by remote lockdown 48833 | -3/Garrison | Attempted to access garrison exit controls, blocked by remote lockdown 48854 | -3/Garrison | Triggered checkpoint 48883 | -3/Garrison | Garrison Relay disabled 49042 | -3/Garrison | Entered Quarantine 49042 | -3/Quarantine | Accompanied by 3 allies 49043 | -3/Quarantine | Maximum security lockdown engaged 49043 | -3/Quarantine | Loaded intel: 25 trap records 49044 | -3/Quarantine | Loaded intel: 79 machine locations 49083 | -3/Quarantine | Lost 3 allies 49234 | -3/Quarantine | Destroyed 24 combat bots 49263 | -3/Quarantine | Spotted Investigator 49268 | -3/Quarantine | Scanned by Researcher 49269 | -3/Quarantine | Destroyed Investigator 49272 | -3/Quarantine | Spotted Striker 49273 | -3/Quarantine | Destroyed Striker 49307 | -3/Quarantine | Destroyed 26 combat bots 49334 | -3/Quarantine | Found Alien Impact Weapon 49343 | -3/Quarantine | Discovered exit to Research (range 23) 49355 | -3/Quarantine | Found Alien Energy Cannon 49393 | -3/Quarantine | Spotted Striker 49393 | -3/Quarantine | Spotted Striker 49393 | -3/Quarantine | Spotted Executioner 49393 | -3/Quarantine | Spotted Executioner 49395 | -3/Quarantine | System corruption reached 10% 49395 | -3/Quarantine | Destroyed Executioner 49397 | -3/Quarantine | Destroyed Executioner 49401 | -3/Quarantine | Destroyed Striker 49408 | -3/Quarantine | Destroyed Striker 49444 | -3/Quarantine | Destroyed 40 combat bots 49446 | -3/Quarantine | Lost 6 parts (1p2n2u1w) 49450 | -3/Quarantine | Entered Research 49450 | -2/Research | Warlord forces began assault on 0b10 49450 | -2/Research | Evolved 2 slots: Utility x2 49451 | -2/Research | Loaded intel: 101 machine locations 49475 | -2/Research | Distinguished unit "The Professionals" dispatched to help 49475 | -2/Research | Distinguished unit "Lobotomizers" dispatched to help 49537 | -2/Research | Met up with Warlord 49560 | -2/Research | Research machine network offline 49786 | -2/Research | Spotted Striker 49786 | -2/Research | Spotted Striker 49793 | -2/Research | Spotted Executioner 49826 | -2/Research | Lost 14 allies 49831 | -2/Research | Build established: Scavenger-Golem 49912 | -2/Research | Discovered new exit (range 5) 49918 | -2/Research | High security lockdown imminent 49922 | -2/Research | Identified exit to Access 49952 | -2/Research | Borebot progress halted 49962 | -2/Research | Entered Access 49962 | -1/Access | Evolved 2 slots: Utility x1, Weapon x1 49963 | -1/Access | Loaded intel: 105 machine locations 50005 | -1/Access | Spotted B-99 Colossus 50027 | -1/Access | Destroyed B-99 Colossus 50047 | -1/Access | Lost 4 allies 50462 | -1/Access | First assault squad dispatched 50516 | -1/Access | Intercept squad dispatched 50521 | -1/Access | Spotted Tracker 50523 | -1/Access | Spotted Tracker 50526 | -1/Access | Destroyed Tracker 50534 | -1/Access | Destroyed Tracker 50558 | -1/Access | Spotted Combat Programmer 50569 | -1/Access | Spotted Combat Programmer 50579 | -1/Access | Identified Core Stripper 50581 | -1/Access | Destroyed Combat Programmer 50585 | -1/Access | Destroyed Combat Programmer 50607 | -1/Access | System corruption reached 10% 50628 | -1/Access | Found Exp. Target Analyzer 50631 | -1/Access | Found EMDS 50637 | -1/Access | Destroyed 14 combat bots 50637 | -1/Access | Identified Core Cannon 50639 | -1/Access | Discovered new exit (range 18) 50641 | -1/Access | Lost 8 parts (2n3u3w) 50696 | -1/Access | Spotted B-99 Colossus 50709 | -1/Access | Spotted B-99 Colossus 50716 | -1/Access | Entered Command 50717 | -1/Command | Loaded intel: 65 machine locations 50958 | -1/Command | Disengaged cave seal 50958 | -1/Command | Derelicts emerged from the dark tunnel 50958 | -1/Command | Welcomed Warlord to Command 51076 | -1/Command | Build established: Scavenger-Gunner 51301 | -1/Command | Lost 5 allies 51377 | -1/Command | Spotted M Guard 51377 | -1/Command | Spotted M Guard 51377 | -1/Command | Spotted Combat Programmer 51378 | -1/Command | Spotted Combat Programmer 51390 | -1/Command | Warlord commented on Warlord statues 51403 | -1/Command | Combat Programmer assimilated allied AA-HKA(h) 51405 | -1/Command | Combat Programmer assimilated allied IA-4B1(h) 51427 | -1/Command | Destroyed M Guard 51433 | -1/Command | All MAIN.C guards destroyed 51437 | -1/Command | Found Corrupted Zero-point Reactor 51446 | -1/Command | Found Corrupted Prototype Protection 51446 | -1/Command | Identified Hvy. Regenerative Plating 51447 | -1/Command | System corruption reached 30% 51453 | -1/Command | Lost 8 parts (1p2n4u1w) 51454 | -1/Command | Found Zero-point Reactor 51460 | -1/Command | Lost 12 allies 51511 | -1/Command | First assault squad dispatched 51532 | -1/Command | Met MAIN.C 51532 | -1/Command | Hacked MAIN.C using A7's code 51535 | -1/Command | 0b10 Conduit disabled 51556 | -1/Command | MAIN.C activated Command garrisons 51571 | -1/Command | Destroyed MAIN.C 51573 | *** | Establishing Free Derelict Territories! Last Messages --------------- 51570_ Biometal Leg destroyed. 51570_ MU-X4O(K) destroyed. 51570_ C-30 ARC bursts open, deploying its payload. 51570_ G-73 Enforcer unfolds itself. 51570_ B-74 Champion unfolds itself. 51570_ G-73 Enforcer unfolds itself. 51570_ M-36 Artificer unfolds itself. 51570_ Slug penetrates MAIN.C. 51570_ Slug penetrates 0b10 Conduit. 51571_ Blast Slug penetrates MAIN.C. 51571_ MAIN.C knocked back. 51571_ Blast Slug penetrates MAIN.C. 51571_ MAIN.C: "I hope you know you're still going to DIE HERE WITH ME!" 51571_ MAIN.C destroyed. 51571_ M-36 Artificer repairs G-73 Enforcer. 51573_ Slug penetrates Reinforced Barrier. ZY-L1N: Victory! Sure there's still lots to do, but without MAIN.C at the helm 0b10 doesn't stand a chance. We've got this... Map ----- +----------------------------------------------------+ | ?????????????????????????????????????????????????? | | ?????????????????????????????????????????????????? | | ?????????????????????????????????????????????????? | | ?????????????????????????????????????????????????? | | ?????????????????????????????????????????????????? | | ?????????????????????????????????????????????????? | | ?????????????????????????????????????????????????? | | ?????????????????????????????????????????????????? | | ?????????????????????????????????????????????????? | | ?????????????????????????????????????????????????? | | ?????????????????????????????????????????????????? | | ?????????????????????????????????????????????????? | | ?????????????????????????????????????????????????? | | ?????????????????????????????????????????????????? | | ?????????????????????????????????????????????????? | | ?????????????????????????????????????????????????? | | ?????????????????????????????????????????????????? | | ?????????????????????????????????????????????????? | | ?????????????????????????????????????????????????? | | ?????????????????????????????????????????????????? | | ?????????????????????????????????????????????????? | | ???????###################???????????????????????? | | ????""""""" """" #???????????????????????? | | ????"" "" #???????????????????????? | | ????""" " "" n#######################?? | | ????"""" """"" @ b=gm=|= #?? | | ???? n| g!gm%= #?? | | ????"" W ! gbg!== #?? | | ????"" K % ################;;; #?? | | ???? $ #?????????????????# #?? | | ???? " %% #?????????????????# ##? | | ???? " "#?????????????????# T#? | | ????"" """""""#?????????????????#++/### | | ????"" """""""""#?????????????????# | | ?????? """"""""""#?????????????????# | | ????? " " " " #?????????????????# | | ???? " " " " #?????????????????# | | ?""" " " """" " #?????????????????# | | ?""" " " " """" #?????????????????# ## | | ?""" "?" " #?????????????????######? | | ???# " """"""" "?? #???????????????????????? | | ???# " """??"? """"""""????????????????????????? | | ???# ? """??"??"???"???????????????????????????? | | ????#?##?????????????????????????????????????????? | | ?????????????????????????????????????????????????? | | ?????????????????????????????????????????????????? | | ?????????????????????????????????????????????????? | | ?????????????????????????????????????????????????? | | ?????????????????????????????????????????????????? | | ?????????????????????????????????????????????????? | +----------------------------------------------------+ Best States ------------- Heat Dissipation 113 Coolant Potential 100 Energy Generation 61 Energy Capacity 1750 Matter Stores 300 Matter Capacity 300 Sight Range 23 Robot Scan Range 20 Terrain Scan Range 16 Terrain Scan Density 210 Jamming Range 14 Cloak Strength 4 Additional Mass Support 20 Armor Coverage 1600 Resistance: KI 30 Resistance: TH 15 Resistance: EX 15 Resistance: EM 90 Resistance: I 15 Resistance: S 15 Resistance: P 15 Weapon Shielding 100 Point Defense Rating 240 Weapon Cycling 25 Phase Shifting 20 Evasion (%) 65 Targeting Accuracy 28 Target Analysis 10 Core Analysis 8 Armor Integrity Analysis 40 Recoil Reduction 3 Particle Charging 37 Force Boost 40 Offensive Hacking 40 Defensive Hacking 32 Item Schematics ----------------- Lrn. Tractor Beam | -7/Factory | Hacked Imp. Plasma Cutter | -7/Factory | Hacked Mak. Spear | -7/Zion | Archive Beamcaster | -7/Zion | Archive Matter Filter | -7/Zion | Archive Fission Core | -7/Zion | Archive Imp. Cooling System | -7/Zion | Archive Coil Gun | -7/Zion | Archive Gauss Rifle | -7/Zion | Archive Hvy. Treads | -7/Zion | Archive Variable Charge Gun | -7/Zion | Archive Hvy. Rocket Launcher | -7/Zion | Archive Phase Cannon | -7/Zion | Archive Mak. Salvage Targeting Computer | -7/Zion | Archive Hvy. Pick | -7/Zion | Archive Force Field | -7/Zion | Archive Xenon Bombardment Thruster | -7/Zion | Archive Weapon Mount | -6/Factory | Hacked Adv. Cryofiber Web | -6/Factory | Hacked Combat Drone Bay | -6/Data Miner | Free Lgt. Regenerative Plating | -6/Data Miner | Free Cld. Nuclear Pulse Thruster | -6/Data Miner | Free Imp. Energy Well | -6/Data Miner | Free Hvy. Gatling Laser | -6/Data Miner | Free Centrium Wheel | -6/Data Miner | Free Adv. Particle Charger | -6/Data Miner | Free Matter Neutralizer | -6/Data Miner | Free Myomer Leg | -6/Data Miner | Free Adv. Coolant Injector | -6/Data Miner | Free Heavy Servo Lattice | -4/Factory | Hacked Robot Schematics ------------------ B-48 Gladiator | -7/Zion | Archive K-01 Serf | -7/Zion | Archive X-77 Beamer | -7/Zion | Archive L-41 Fighter | -6/Data Miner | Free S-27 Virus | -6/Data Miner | Free A-15 Conveyor | -6/Data Miner | Free M-22 Extractor | -6/Data Miner | Free R-10 Processor | -6/Data Miner | Free M-36 Artificer | -6/Data Miner | Free Fabricated ------------ Imp. Plasma Cutter | x2 | -7/Factory Weapon Mount | x2 | -6/Factory Adv. Particle Charger | x2 | -5/Factory Heavy Servo Lattice | x1 | -4/Factory Combat Drone Bay | x1 | -3/Research Alien Tech Used ----------------- Core Stripper Core Cannon Achievements -------------- None Challenges ------------ None Game ------ Seed LayeredRagnarokMultitool Manual? 0 Play Time 06:24:30 Cumulative 520.8 hours Start 2024.02.06 @ 16:34:09 End 2024.02.06 @ 23:28:52 Sessions 1 Manual Loads 0 Difficulty Rogue Special Mode None Game No. 178 Rogue 163 Adventurer 15 Explorer 0 Win Type 7 Total 33 Types 9/3/9/2/2/0/4/3/1 Lore% 93 Gallery% 94 Achievement% 83 Wizard Run 0 Options --------- ASCII 0 Keyboard 0 Movement Numpad Keybinds 0 Fullscreen 1 Font 18/SmallcapsGlow Map View 76x50 Zoom Use 0% Tactical HUD 1 Map Filters NONE Filters NONE Steam 1 RUN: cdd526df-eb16-4f96-aacc-36e9a10d85c8